Workbook

Sheet Intro
A1: Expenses
A2: Multicurrency Expense Form With Automatic Categorisation Summary
A3: Description: | B3: This expense tracking form is to allow you to capture expenses incurred while performing work for a client; expenses to be reimbursed by the client in that client's home currency, and expenses that will not be reimbursed. The non-reimbursable expenses reconcile themselves differently since the workbook assumes you will be paying for them in your home currency (which may differ from the client's currency).
A4: Version: | B4: 14.2
A5: Date: | B5: 2011-08-13
A6: Eval: | B6: Take a look at the sample data on the "Reim_Detail" worksheets and the way it is presented in the and "Reim_Summary" and "ExpenseDB" worksheets. Once you are comfortable with how things look, delete the sample data.
A7: Install: | B7: 1. Go to the Rules tab and enter your home (that is, reimbursement) currency into the "Actual Home Currency" cell.
B8: 2. Put the template in your MS Office templates folder.
A9: Usage: | B9: 1. Go to the "Cover" worksheet and enter covering detail for the expense report.
B10: 2. Go to the "Reim_Detail" worksheet and enter your client's currency.
B11: 3. Go to the "Expense_Entry" worksheet and enter your expense data; including the actual amount that you were charged by the credit card companies or as a result of currency conversion.
B12: Note 1: green shaded cells are for data entry.
B13: Note 2: the "Expense_Entry" worksheet is populated with sample data to demonstrate how this workbook is used; however, it's setup so that when you navigate there is you press the [Delete] key then all of the sample data will be erased with a single key press.
B14: 4. If you need to insert additional "Expense_Entry" rows, you will need to also insert additional rows into the "Reim_Detail" and "ExpenseDB" worksheet and adjust their formulas.
B15: 5. Go to the "Reim_Summary" and "ExpenseDB" worksheets and refresh the crosstabs.
B16: 6. The "Reim_Summary" and "Reim_Detail" tabs can be printed together to form a client-facing expense report.
B17: 7. The "ExpenseDB" worksheet should provide you with all the information you might need to enter expense report details into your employer's expense reporting system.
A18: Author: | B18: Christopher Rath <christopher@rath.ca>
A19: Copyright: | B19: © 2004–2011 Christopher Rath. Permission is granted for any use of this template by others as long as this copyright statement is retained and other due and proper credit is provided to the author (that is, don't claim you wrote this template).
A20: Warranty: | B20: This package is distributed in the hope that it will be useful, but WITHOUT ANY WARRANTY; without even the implied warranty of MERCHANTABILITY or FITNESS FOR A PARTICULAR PURPOSE.

Sheet Cover
B1: =CONCATENATE("Expense Report—",Employee," [ Week ",IF(10>WEEKNUM(Trip_Start,1),"0",""),WEEKNUM(Trip_Start,1)," ]") -> Expense Report—Employee Name [ Week 14 ]
B3: Employee: | C3: Employee Name
B4: Trip Start: | C4: 2004-03-29
B5: Trip End:
B6: Client: | C6: Client Name
B7: Destination: | C7: Politsania
B8: Purpose: | C8: Demo data
B9: Mileage Rate: | C9: 55.5 ¢/mi.
B10: Reimbursement Currency: | C10: CAD | D10: =IF(VLOOKUP(C10,FX_Rate_Tbl,2,FALSE())=1,"","ERROR: Your reimbursement currency must have an FX Rate of '1' in the table below.") -> 
C12: Currency | D12: FX Rate
C13: CAD | D13: 1.0000
C14: USD | D14: 0.9370
C15: SGD | D15: 1.2484
C16: HKG | D16: 7.8078
C17: Other 1

Sheet Expense_Entry
A1: =Cover!B1 -> Expense Report—Employee Name [ Week 14 ]
A3: =Cover!B4 -> Trip Start: | B3: =Trip_Start -> 2004-03-29 | D3: Total Amount: | E3: =Total_Est_Reim_Amt -> $14,285.80 | G3: Currency | H3: FX Rate
A4: =Cover!B5 -> Trip End: | B4: =Trip_End -> 00:00:00 | D4: =Cover!B10 -> Reimbursement Currency: | E4: =Reimbursement_Currency -> CAD | F4: =IF(H4=1,"Home→","") -> Home→ | G4: =INDEX(Cover!FX_Names,ROW(G4)-3,1) -> CAD | H4: =VLOOKUP(G4,Cover!FX_Rate_Tbl,2,FALSE) -> 1.0000
A5: =Cover!B6 -> Client: | B5: =Client -> Client Name | F5: =IF(H5=1,"Home→","") ->  | G5: =INDEX(Cover!FX_Names,ROW(G5)-3,1) -> USD | H5: =VLOOKUP(G5,Cover!FX_Rate_Tbl,2,FALSE) -> 0.9370
A6: =Cover!B7 -> Destination: | B6: =Destination -> Politsania | G6: =INDEX(Cover!FX_Names,ROW(G6)-3,1) -> SGD | H6: =VLOOKUP(G6,Cover!FX_Rate_Tbl,2,FALSE) -> 1.2484
A7: =Cover!B8 -> Purpose: | B7: =Purpose -> Demo data | G7: =INDEX(Cover!FX_Names,ROW(G7)-3,1) -> HKG | H7: =VLOOKUP(G7,Cover!FX_Rate_Tbl,2,FALSE) -> 7.8078
G8: =INDEX(Cover!FX_Names,ROW(G8)-3,1) -> Other 1 | H8: =VLOOKUP(G8,Cover!FX_Rate_Tbl,2,FALSE) -> 0 | J8: In Reimbursement $
H9: Estimated | J9: Actual
A10: Date | B10: Establishment | C10: Description | D10: Type | E10: Method | F10: Currency | G10: Exp. Amt. | H10: Home Amt. | I10: - | J10: Levied Amt. | K10: Difference
A11: 2011-03-11 | B11: Mileage | C11: Drive to/from YOW (38 miles) | D11: Mileage | E11: Mileage | F11: USD | G11: =38*MileageRate/100 -> $21.09 | H11: =IF(OR(ISBLANK(F11),ISBLANK(G11)),"",ROUND(G11/VLOOKUP(F11,FX_Rate_Tbl,2,FALSE),2)) -> $22.51 | J11: =VLOOKUP(F11,Cover!FX_Rate_Tbl,2,FALSE)/VLOOKUP(Reimbursement_Currency,Cover!FX_Rate_Tbl,2,FALSE)*G11 -> $19.76 | K11: =IF(Reimbursement_Currency=F11,0,IF(ISBLANK(J11),STR_TBD,ROUND(J11-H11,2))) -> $(2.75)
A12: 2011-03-11 | B12: Ottawa Airport | C12: Parking | D12: Parking | E12: AMEX | F12: CAD | G12: $6.00 | H12: $6.00 | K12: 0
A13: 2011-03-11 | B13: Cold Storage | C13: Dinner | D13: Meals | E13: AMEX | F13: SGD | G13: $8.60 | H13: $6.89 | J13: $6.82 | K13: $(0.07)
A14: 2011-03-11 | B14: Starbucks | C14: Coffee | D14: Meals | E14: AMEX | F14: SGD | G14: $7.90 | H14: $6.33 | J14: $6.27 | K14: $(0.06)
A15: 2011-03-12 | B15: Starbucks | C15: Coffee | D15: Meals | E15: AMEX | F15: CAD | G15: $4.71 | H15: $4.71 | K15: 0
A16: 2011-03-12 | B16: Airport Taxi | C16: Taxi to hotel | D16: Taxi | E16: Cash | F16: CAD | G16: $20.00 | H16: $20.00 | K16: 0
A17: 2011-03-12 | B17: YYZ Marriott | C17: Dinner | D17: Meals | E17: AMEX | F17: CAD | G17: $43.42 | H17: $43.42 | K17: 0
A18: 2011-03-12 | B18: YYZ Marriott | C18: Hotel | D18: Hotel | E18: AMEX | F18: CAD | G18: =119+15.47 -> $134.47 | H18: $134.47 | K18: 0
A19: 2011-03-12 | B19: United Airlines | C19: Fly to SIN | D19: Airfare | E19: AMEX | F19: CAD | G19: $11,000.81 | H19: $11,000.81 | K19: 0
A20: 2011-03-13 | B20: YYZ Marriott | C20: Tip maid | D20: Hotel | E20: Cash | F20: CAD | G20: $5.00 | H20: $5.00 | K20: 0
A21: 2011-03-13 | B21: YYZ Marriott | C21: Laundry | D21: Misc. | E21: Cash | F21: CAD | G21: $2.50 | H21: $2.50 | K21: 0
A22: 2011-03-13 | B22: YYZ Marriott | C22: Tip bellman | D22: Meals | E22: Cash | F22: USD | G22: $1.00 | H22: $1.07 | J22: =H22 -> $1.07 | K22: 0
A23: 2011-03-13 | B23: Starbucks | C23: Coffee | D23: Meals | E23: AMEX | F23: CAD | G23: $4.18 | H23: $4.18 | K23: 0
A24: 2011-03-14 | B24: Concorde Hotel | C24: Hotel | D24: Hotel | E24: AMEX | F24: SGD | G24: =285+28.5+21.95 -> $335.45 | H24: $268.70 | J24: =(1987.73+2160.36)*(G24/5218.37) -> $266.65 | K24: $(2.05)
A25: 2011-03-15 | B25: Starbucks | C25: Coffee | D25: Meals | E25: AMEX | F25: SGD | G25: $7.10 | H25: $5.69 | J25: =(1987.73+2160.36)*(G25/5218.37) -> $5.64 | K25: $(0.05)
A26: 2011-03-15 | B26: Camera Comp | C26: Laptop power cable | D26: Misc. | E26: AMEX | F26: SGD | G26: $25.00 | H26: $20.03 | J26: $19.87 | K26: $(0.16)
A27: 2011-03-15 | B27: SingTel | C27: Data SIM | D27: Phone | E27: AMEX | F27: SGD | G27: $18.00 | H27: $14.42 | J27: $14.31 | K27: $(0.11)
A28: 2011-03-15 | B28: Citycab | C28: Taxi to hotel | D28: Taxi | E28: AMEX | F28: SGD | G28: $30.55 | H28: $24.47 | J28: $24.28 | K28: $(0.19)
A29: 2011-03-15 | B29: Concorde Hotel | C29: Hotel | D29: Hotel | E29: AMEX | F29: SGD | G29: =285+28.5+21.95 -> $335.45 | H29: $268.70 | J29: $266.65 | K29: $(2.05)
A30: 2011-03-15 | B30: SingTel | C30: Lunch | D30: Meals | E30: Cash | F30: SGD | G30: $2.80 | H30: $2.24 | J30: $2.23 | K30: $(0.01)
A31: 2011-03-16 | B31: Starbucks | C31: Coffee | D31: Meals | E31: AMEX | F31: SGD | G31: $7.10 | H31: $5.69 | J31: $5.64 | K31: $(0.05)
A32: 2011-03-16 | B32: McDonald's | C32: Dinner | D32: Meals | E32: Cash | F32: SGD | G32: $2.30 | H32: $1.84 | J32: $1.83 | K32: $(0.01)
A33: 2011-03-16 | B33: Cold Storage | C33: Dinner | D33: Meals | E33: AMEX | F33: SGD | G33: $13.80 | H33: $11.05 | J33: $10.97 | K33: $(0.08)
A34: 2011-03-16 | B34: Concorde Hotel | C34: Hotel | D34: Hotel | E34: AMEX | F34: SGD | G34: =285+28.5+21.95 -> $335.45 | H34: $268.70 | J34: $266.65 | K34: $(2.05)
A35: 2011-03-16 | B35: SingTel | C35: Lunch | D35: Meals | E35: Cash | F35: SGD | G35: $30.00 | H35: $24.03 | J35: $23.85 | K35: $(0.18)
A36: 2011-03-17 | B36: Starbucks | C36: Coffee | D36: Meals | E36: AMEX | F36: SGD | G36: $7.10 | H36: $5.69 | J36: $5.64 | K36: $(0.05)
A37: 2011-03-17 | B37: Cold Storage | C37: Dinner | D37: Meals | E37: AMEX | F37: SGD | G37: $8.10 | H37: $6.49 | J37: $6.44 | K37: $(0.05)
A38: 2011-03-17 | B38: Concorde Hotel | C38: Hotel | D38: Hotel | E38: AMEX | F38: SGD | G38: =285+28.5+21.95 -> $335.45 | H38: $268.70 | J38: $266.65 | K38: $(2.05)
A39: 2011-03-17 | B39: Concorde Hotel | C39: Laundry | D39: Misc. | E39: AMEX | F39: SGD | G39: =27.6+2.76+2.13 -> $32.49 | H39: $26.02 | J39: $25.83 | K39: $(0.19)
A40: 2011-03-17 | B40: Concorde Hotel | C40: Telephone | D40: Phone | E40: AMEX | F40: SGD | G40: $0.43 | H40: $0.34 | J40: $0.34 | K40: 0
A41: 2011-03-17 | B41: Concorde Hotel | C41: Dinner | D41: Meals | E41: AMEX | F41: SGD | G41: =13+10+2.3+1.77 -> $27.07 | H41: $21.68 | J41: $21.52 | K41: $(0.16)
A42: 2011-03-17 | B42: SingTel | C42: Lunch | D42: Meals | E42: Cash | F42: SGD | G42: $2.00 | H42: $1.60 | J42: $1.59 | K42: $(0.01)
A43: 2011-03-18 | B43: Youniqe Bistro | C43: Coffee | D43: Meals | E43: Cash | F43: SGD | G43: $3.20 | H43: =IF(OR(ISBLANK(F43),ISBLANK(G43)),"",ROUND(G43/VLOOKUP(F43,FX_Rate_Tbl,2,FALSE),2)) -> $2.56 | J43: $2.54 | K43: =IF(Reimbursement_Currency=F43,0,IF(ISBLANK(J43),STR_TBD,ROUND(J43-H43,2))) -> $(0.02)
A44: 2011-03-18 | B44: Starbucks | C44: Coffee | D44: Meals | E44: AMEX | F44: SGD | G44: $7.10 | H44: $5.69 | J44: $5.64 | K44: $(0.05)
A45: 2011-03-18 | B45: CS Centrepoint | C45: Dinner | D45: Meals | E45: Cash | F45: SGD | G45: $3.40 | H45: $2.72 | J45: $2.70 | K45: $(0.02)
A46: 2011-03-18 | B46: SingTel | C46: Data SIM | D46: Phone | E46: VISA | F46: SGD | G46: $18.00 | H46: $14.42 | J46: $14.31 | K46: $(0.11)
A47: 2011-03-18 | B47: Cold Storage | C47: Dinner | D47: Meals | E47: AMEX | F47: SGD | G47: $19.90 | H47: $15.94 | J47: $15.82 | K47: $(0.12)
A48: 2011-03-18 | B48: Concorde Hotel | C48: Hotel | D48: Hotel | E48: AMEX | F48: SGD | G48: =285+28.5+21.95 -> $335.45 | H48: $268.70 | J48: $266.65 | K48: $(2.05)
A49: 2011-03-18 | B49: SingTel | C49: Lunch | D49: Meals | E49: Cash | F49: SGD | G49: $10.00 | H49: $8.01 | J49: $7.95 | K49: $(0.06)
A50: 2011-03-19 | B50: Concorde Hotel | C50: Hotel | D50: Hotel | E50: AMEX | F50: SGD | G50: =285+28.5+21.95 -> $335.45 | H50: $268.70 | J50: $266.65 | K50: $(2.05)
A51: 2011-03-19 | B51: Starbucks | C51: Coffee | D51: Meals | E51: AMEX | F51: SGD | G51: $5.50 | H51: $4.41 | J51: $4.37 | K51: $(0.04)
A52: 2011-03-19 | B52: Cold Storage | C52: Snack | D52: Meals | E52: Cash | F52: SGD | G52: $6.60 | H52: $5.29 | J52: $5.25 | K52: $(0.04)
A53: 2011-03-20 | B53: Concorde Hotel | C53: Hotel | D53: Hotel | E53: AMEX | F53: SGD | G53: =285+28.5+21.95 -> $335.45 | H53: $268.70 | J53: $266.65 | K53: $(2.05)
A54: 2011-03-20 | B54: Starbucks | C54: Coffee | D54: Meals | E54: AMEX | F54: SGD | G54: $8.70 | H54: $6.97 | J54: $6.92 | K54: $(0.05)
A55: 2011-03-20 | B55: Starbucks | C55: Coffee | D55: Meals | E55: AMEX | F55: SGD | G55: $5.80 | H55: $4.65 | J55: $4.61 | K55: $(0.04)
A56: 2011-03-20 | B56: Starbucks | C56: Tip | D56: Meals | E56: Cash | F56: SGD | G56: $2.20 | H56: $1.76 | J56: $1.75 | K56: $(0.01)
A57: 2011-03-21 | B57: Concorde Hotel | C57: Hotel | D57: Hotel | E57: AMEX | F57: SGD | G57: =285+28.5+21.95 -> $335.45 | H57: $268.70 | J57: $266.65 | K57: $(2.05)
A58: 2011-03-21 | B58: Concorde Hotel | C58: Laundry | D58: Misc. | E58: AMEX | F58: SGD | G58: =27.6+2.76+2.13 -> $32.49 | H58: $26.02 | J58: $25.83 | K58: $(0.19)
A59: 2011-03-21 | B59: SingTel | C59: BoM | D59: Phone | E59: AMEX | F59: SGD | G59: $18.00 | H59: $14.42 | J59: $14.31 | K59: $(0.11)
A60: 2011-03-21 | B60: Starbucks | C60: Coffee | D60: Meals | E60: AMEX | F60: SGD | G60: $7.10 | H60: $5.69 | J60: $5.64 | K60: $(0.05)
A61: 2011-03-21 | B61: Cold Storage | C61: Water | D61: Meals | E61: Cash | F61: SGD | G61: $2.15 | H61: $1.72 | J61: $1.71 | K61: $(0.01)
A62: 2011-03-21 | B62: SingTel | C62: Lunch | D62: Meals | E62: Cash | F62: SGD | G62: $2.80 | H62: $2.24 | J62: $2.23 | K62: $(0.01)
A63: 2011-03-22 | B63: Concorde Hotel | C63: Hotel | D63: Hotel | E63: AMEX | F63: SGD | G63: =285+28.5+21.95 -> $335.45 | H63: $268.70 | J63: $266.65 | K63: $(2.05)
A64: 2011-03-22 | B64: Starbucks | C64: Coffee | D64: Meals | E64: AMEX | F64: SGD | G64: $7.10 | H64: $5.69 | J64: $5.64 | K64: $(0.05)
A65: 2011-03-22 | B65: Cold Storage | C65: Dinner | D65: Meals | E65: AMEX | F65: SGD | G65: $26.50 | H65: $21.23 | J65: $21.06 | K65: $(0.17)
A66: 2011-03-22 | B66: SingTel | C66: Lunch | D66: Meals | E66: Cash | F66: SGD | G66: $5.50 | H66: $4.41 | J66: $4.37 | K66: $(0.04)
A67: 2011-03-23 | B67: Concorde Hotel | C67: Hotel | D67: Hotel | E67: AMEX | F67: SGD | G67: =285+28.5+21.95 -> $335.45 | H67: $268.70 | J67: $266.65 | K67: $(2.05)
A68: 2011-03-23 | B68: Starbucks | C68: Coffee | D68: Meals | E68: AMEX | F68: SGD | G68: $7.90 | H68: $6.33 | J68: $6.28 | K68: $(0.05)
A69: 2011-03-23 | B69: Burger King | C69: Lunch | D69: Meals | E69: Cash | F69: SGD | G69: $7.65 | H69: $6.13 | J69: $6.08 | K69: $(0.05)
A70: 2011-03-23 | B70: Starbucks | C70: Coffee | D70: Meals | E70: AMEX | F70: HKG | G70: $26.00 | H70: $3.33 | J70: $3.33 | K70: 0
G71: Total: | H71: =SUM(H11:H70) -> $14,285.80 | J71: B/W: | K71: =SUM(K11:K70) -> $(25.97)

Sheet Reim_Summary
B1: =Reim_Detail!A1 -> Expense Report—Employee Name [ Week 14 ]
B3: =Cover!B4 -> Trip Start: | C3: =Trip_Start -> 2004-03-29 | G3: =Reim_Detail!D3 -> Total Amount: | H3: =Total_Est_Client_Amt -> $17,834.82
B4: =Cover!B5 -> Trip End: | C4: =Trip_End -> 00:00:00 | G4: =Reim_Detail!D4 -> Client Currency: | H4: =Client_Currency -> SGD
B5: =Cover!B6 -> Client: | C5: =Client -> Client Name
B6: =Cover!B7 -> Destination: | C6: =Destination -> Politsania
B7: =Cover!B8 -> Purpose: | C7: =Purpose -> Demo data
B9: Sum of Client Amt. | C9: Type
B10: Date | C10: Airfare | D10: Hotel | E10: Meals | F10: Mileage | G10: Misc. | H10: Parking | I10: Phone | J10: Taxi | K10: Grand Total
B11: 2011-03-11 | E11: $16.50 | F11: $25.82 | H11: $7.49 | K11: $49.81
B12: 2011-03-12 | C12: $13,733.79 | D12: $167.88 | E12: $60.09 | J12: $24.97 | K12: $13,986.73
B13: 2011-03-13 | D13: $6.24 | E13: $6.55 | G13: $3.12 | K13: $15.91
B14: 2011-03-14 | D14: $335.45 | K14: $335.45
B15: 2011-03-15 | D15: $335.45 | E15: $9.90 | G15: $25.00 | I15: $18.00 | J15: $30.55 | K15: $418.90
B16: 2011-03-16 | D16: $335.45 | E16: $53.20 | K16: $388.65
B17: 2011-03-17 | D17: $335.45 | E17: $44.27 | G17: $32.49 | I17: $0.43 | K17: $412.64
B18: 2011-03-18 | D18: $335.45 | E18: $43.60 | I18: $18.00 | K18: $397.05
B19: 2011-03-19 | D19: $335.45 | E19: $12.10 | K19: $347.55
B20: 2011-03-20 | D20: $335.45 | E20: $16.70 | K20: $352.15
B21: 2011-03-21 | D21: $335.45 | E21: $12.05 | G21: $32.49 | I21: $18.00 | K21: $397.99
B22: 2011-03-22 | D22: $335.45 | E22: $39.10 | K22: $374.55
B23: 2011-03-23 | D23: $335.45 | E23: $19.71 | K23: $355.16
B24: Grand Total | C24: $13,733.79 | D24: $3,528.62 | E24: $333.77 | F24: $25.82 | G24: $93.10 | H24: $7.49 | I24: $54.43 | J24: $55.52 | K24: $17,832.54

Sheet Reim_Detail
A1: =Cover!B1 -> Expense Report—Employee Name [ Week 14 ]
A3: =Cover!B4 -> Trip Start: | B3: =Trip_Start -> 2004-03-29 | D3: Total Amount: | E3: =Total_Est_Client_Amt -> $17,834.82 | G3: Currency | H3: FX Rate
A4: =Cover!B5 -> Trip End: | B4: =Trip_End -> 00:00:00 | D4: Client Currency: | E4: SGD | F4: =IF(H4=1,"Client→","") ->  | G4: =INDEX(Cover!FX_Names,ROW(G4)-3,1) -> CAD | H4: =VLOOKUP(G4,Cover!FX_Rate_Tbl,2,FALSE)/VLOOKUP(Client_Currency,Cover!FX_Rate_Tbl,2,FALSE) -> 0.8010
A5: =Cover!B6 -> Client: | B5: =Client -> Client Name | F5: =IF(H5=1,"Client→","") ->  | G5: =INDEX(Cover!FX_Names,ROW(G5)-3,1) -> USD | H5: =VLOOKUP(G5,Cover!FX_Rate_Tbl,2,FALSE)/VLOOKUP(Client_Currency,Cover!FX_Rate_Tbl,2,FALSE) -> 0.7506
A6: =Cover!B7 -> Destination: | B6: =Destination -> Politsania | F6: Client→ | G6: =INDEX(Cover!FX_Names,ROW(G6)-3,1) -> SGD | H6: =VLOOKUP(G6,Cover!FX_Rate_Tbl,2,FALSE)/VLOOKUP(Client_Currency,Cover!FX_Rate_Tbl,2,FALSE) -> 1.0000
A7: =Cover!B8 -> Purpose: | B7: =Purpose -> Demo data | G7: =INDEX(Cover!FX_Names,ROW(G7)-3,1) -> HKG | H7: =VLOOKUP(G7,Cover!FX_Rate_Tbl,2,FALSE)/VLOOKUP(Client_Currency,Cover!FX_Rate_Tbl,2,FALSE) -> 6.2541
G8: =INDEX(Cover!FX_Names,ROW(G8)-3,1) -> Other 1 | H8: =VLOOKUP(G8,Cover!FX_Rate_Tbl,2,FALSE)/VLOOKUP(Client_Currency,Cover!FX_Rate_Tbl,2,FALSE) -> 0
H9: Calculated
A10: Date | B10: Establishment | C10: Description | D10: Type | E10: Method | F10: Currency | G10: Exp. Amt. | H10: Client Amt.
A11: =IF(ISBLANK(Expense_Entry!A11),"",Expense_Entry!A11) -> 2011-03-11 | B11: =IF(ISBLANK(Expense_Entry!B11),"",Expense_Entry!B11) -> Mileage | C11: =IF(ISBLANK(Expense_Entry!C11),"",Expense_Entry!C11) -> Drive to/from YOW (38 miles) | D11: =IF(ISBLANK(Expense_Entry!D11),"",Expense_Entry!D11) -> Mileage | E11: =IF(ISBLANK(Expense_Entry!E11),"",Expense_Entry!E11) -> Mileage | F11: =IF(ISBLANK(Expense_Entry!F11),"",Expense_Entry!F11) -> USD | G11: =IF(ISBLANK(Expense_Entry!G11),"",Expense_Entry!G11) -> $21.09 | H11: =IF(OR(F11="",G11=""),"",ROUND(G11/VLOOKUP(F11,FX_Rate_Tbl,2,FALSE),2)) -> $28.10
A12: =IF(ISBLANK(Expense_Entry!A12),"",Expense_Entry!A12) -> 2011-03-11 | B12: =IF(ISBLANK(Expense_Entry!B12),"",Expense_Entry!B12) -> Ottawa Airport | C12: =IF(ISBLANK(Expense_Entry!C12),"",Expense_Entry!C12) -> Parking | D12: =IF(ISBLANK(Expense_Entry!D12),"",Expense_Entry!D12) -> Parking | E12: =IF(ISBLANK(Expense_Entry!E12),"",Expense_Entry!E12) -> AMEX | F12: =IF(ISBLANK(Expense_Entry!F12),"",Expense_Entry!F12) -> CAD | G12: =IF(ISBLANK(Expense_Entry!G12),"",Expense_Entry!G12) -> $6.00 | H12: $7.49
A13: =IF(ISBLANK(Expense_Entry!A13),"",Expense_Entry!A13) -> 2011-03-11 | B13: =IF(ISBLANK(Expense_Entry!B13),"",Expense_Entry!B13) -> Cold Storage | C13: =IF(ISBLANK(Expense_Entry!C13),"",Expense_Entry!C13) -> Dinner | D13: =IF(ISBLANK(Expense_Entry!D13),"",Expense_Entry!D13) -> Meals | E13: =IF(ISBLANK(Expense_Entry!E13),"",Expense_Entry!E13) -> AMEX | F13: =IF(ISBLANK(Expense_Entry!F13),"",Expense_Entry!F13) -> SGD | G13: =IF(ISBLANK(Expense_Entry!G13),"",Expense_Entry!G13) -> $8.60 | H13: $8.60
A14: =IF(ISBLANK(Expense_Entry!A14),"",Expense_Entry!A14) -> 2011-03-11 | B14: =IF(ISBLANK(Expense_Entry!B14),"",Expense_Entry!B14) -> Starbucks | C14: =IF(ISBLANK(Expense_Entry!C14),"",Expense_Entry!C14) -> Coffee | D14: =IF(ISBLANK(Expense_Entry!D14),"",Expense_Entry!D14) -> Meals | E14: =IF(ISBLANK(Expense_Entry!E14),"",Expense_Entry!E14) -> AMEX | F14: =IF(ISBLANK(Expense_Entry!F14),"",Expense_Entry!F14) -> SGD | G14: =IF(ISBLANK(Expense_Entry!G14),"",Expense_Entry!G14) -> $7.90 | H14: $7.90
A15: =IF(ISBLANK(Expense_Entry!A15),"",Expense_Entry!A15) -> 2011-03-12 | B15: =IF(ISBLANK(Expense_Entry!B15),"",Expense_Entry!B15) -> Starbucks | C15: =IF(ISBLANK(Expense_Entry!C15),"",Expense_Entry!C15) -> Coffee | D15: =IF(ISBLANK(Expense_Entry!D15),"",Expense_Entry!D15) -> Meals | E15: =IF(ISBLANK(Expense_Entry!E15),"",Expense_Entry!E15) -> AMEX | F15: =IF(ISBLANK(Expense_Entry!F15),"",Expense_Entry!F15) -> CAD | G15: =IF(ISBLANK(Expense_Entry!G15),"",Expense_Entry!G15) -> $4.71 | H15: $5.88
A16: =IF(ISBLANK(Expense_Entry!A16),"",Expense_Entry!A16) -> 2011-03-12 | B16: =IF(ISBLANK(Expense_Entry!B16),"",Expense_Entry!B16) -> Airport Taxi | C16: =IF(ISBLANK(Expense_Entry!C16),"",Expense_Entry!C16) -> Taxi to hotel | D16: =IF(ISBLANK(Expense_Entry!D16),"",Expense_Entry!D16) -> Taxi | E16: =IF(ISBLANK(Expense_Entry!E16),"",Expense_Entry!E16) -> Cash | F16: =IF(ISBLANK(Expense_Entry!F16),"",Expense_Entry!F16) -> CAD | G16: =IF(ISBLANK(Expense_Entry!G16),"",Expense_Entry!G16) -> $20.00 | H16: $24.97
A17: =IF(ISBLANK(Expense_Entry!A17),"",Expense_Entry!A17) -> 2011-03-12 | B17: =IF(ISBLANK(Expense_Entry!B17),"",Expense_Entry!B17) -> YYZ Marriott | C17: =IF(ISBLANK(Expense_Entry!C17),"",Expense_Entry!C17) -> Dinner | D17: =IF(ISBLANK(Expense_Entry!D17),"",Expense_Entry!D17) -> Meals | E17: =IF(ISBLANK(Expense_Entry!E17),"",Expense_Entry!E17) -> AMEX | F17: =IF(ISBLANK(Expense_Entry!F17),"",Expense_Entry!F17) -> CAD | G17: =IF(ISBLANK(Expense_Entry!G17),"",Expense_Entry!G17) -> $43.42 | H17: $54.21
A18: =IF(ISBLANK(Expense_Entry!A18),"",Expense_Entry!A18) -> 2011-03-12 | B18: =IF(ISBLANK(Expense_Entry!B18),"",Expense_Entry!B18) -> YYZ Marriott | C18: =IF(ISBLANK(Expense_Entry!C18),"",Expense_Entry!C18) -> Hotel | D18: =IF(ISBLANK(Expense_Entry!D18),"",Expense_Entry!D18) -> Hotel | E18: =IF(ISBLANK(Expense_Entry!E18),"",Expense_Entry!E18) -> AMEX | F18: =IF(ISBLANK(Expense_Entry!F18),"",Expense_Entry!F18) -> CAD | G18: =IF(ISBLANK(Expense_Entry!G18),"",Expense_Entry!G18) -> $134.47 | H18: $167.88
A19: =IF(ISBLANK(Expense_Entry!A19),"",Expense_Entry!A19) -> 2011-03-12 | B19: =IF(ISBLANK(Expense_Entry!B19),"",Expense_Entry!B19) -> United Airlines | C19: =IF(ISBLANK(Expense_Entry!C19),"",Expense_Entry!C19) -> Fly to SIN | D19: =IF(ISBLANK(Expense_Entry!D19),"",Expense_Entry!D19) -> Airfare | E19: =IF(ISBLANK(Expense_Entry!E19),"",Expense_Entry!E19) -> AMEX | F19: =IF(ISBLANK(Expense_Entry!F19),"",Expense_Entry!F19) -> CAD | G19: =IF(ISBLANK(Expense_Entry!G19),"",Expense_Entry!G19) -> $11,000.81 | H19: $13,733.79
A20: =IF(ISBLANK(Expense_Entry!A20),"",Expense_Entry!A20) -> 2011-03-13 | B20: =IF(ISBLANK(Expense_Entry!B20),"",Expense_Entry!B20) -> YYZ Marriott | C20: =IF(ISBLANK(Expense_Entry!C20),"",Expense_Entry!C20) -> Tip maid | D20: =IF(ISBLANK(Expense_Entry!D20),"",Expense_Entry!D20) -> Hotel | E20: =IF(ISBLANK(Expense_Entry!E20),"",Expense_Entry!E20) -> Cash | F20: =IF(ISBLANK(Expense_Entry!F20),"",Expense_Entry!F20) -> CAD | G20: =IF(ISBLANK(Expense_Entry!G20),"",Expense_Entry!G20) -> $5.00 | H20: $6.24
A21: =IF(ISBLANK(Expense_Entry!A21),"",Expense_Entry!A21) -> 2011-03-13 | B21: =IF(ISBLANK(Expense_Entry!B21),"",Expense_Entry!B21) -> YYZ Marriott | C21: =IF(ISBLANK(Expense_Entry!C21),"",Expense_Entry!C21) -> Laundry | D21: =IF(ISBLANK(Expense_Entry!D21),"",Expense_Entry!D21) -> Misc. | E21: =IF(ISBLANK(Expense_Entry!E21),"",Expense_Entry!E21) -> Cash | F21: =IF(ISBLANK(Expense_Entry!F21),"",Expense_Entry!F21) -> CAD | G21: =IF(ISBLANK(Expense_Entry!G21),"",Expense_Entry!G21) -> $2.50 | H21: $3.12
A22: =IF(ISBLANK(Expense_Entry!A22),"",Expense_Entry!A22) -> 2011-03-13 | B22: =IF(ISBLANK(Expense_Entry!B22),"",Expense_Entry!B22) -> YYZ Marriott | C22: =IF(ISBLANK(Expense_Entry!C22),"",Expense_Entry!C22) -> Tip bellman | D22: =IF(ISBLANK(Expense_Entry!D22),"",Expense_Entry!D22) -> Meals | E22: =IF(ISBLANK(Expense_Entry!E22),"",Expense_Entry!E22) -> Cash | F22: =IF(ISBLANK(Expense_Entry!F22),"",Expense_Entry!F22) -> USD | G22: =IF(ISBLANK(Expense_Entry!G22),"",Expense_Entry!G22) -> $1.00 | H22: $1.33
A23: =IF(ISBLANK(Expense_Entry!A23),"",Expense_Entry!A23) -> 2011-03-13 | B23: =IF(ISBLANK(Expense_Entry!B23),"",Expense_Entry!B23) -> Starbucks | C23: =IF(ISBLANK(Expense_Entry!C23),"",Expense_Entry!C23) -> Coffee | D23: =IF(ISBLANK(Expense_Entry!D23),"",Expense_Entry!D23) -> Meals | E23: =IF(ISBLANK(Expense_Entry!E23),"",Expense_Entry!E23) -> AMEX | F23: =IF(ISBLANK(Expense_Entry!F23),"",Expense_Entry!F23) -> CAD | G23: =IF(ISBLANK(Expense_Entry!G23),"",Expense_Entry!G23) -> $4.18 | H23: $5.22
A24: =IF(ISBLANK(Expense_Entry!A24),"",Expense_Entry!A24) -> 2011-03-14 | B24: =IF(ISBLANK(Expense_Entry!B24),"",Expense_Entry!B24) -> Concorde Hotel | C24: =IF(ISBLANK(Expense_Entry!C24),"",Expense_Entry!C24) -> Hotel | D24: =IF(ISBLANK(Expense_Entry!D24),"",Expense_Entry!D24) -> Hotel | E24: =IF(ISBLANK(Expense_Entry!E24),"",Expense_Entry!E24) -> AMEX | F24: =IF(ISBLANK(Expense_Entry!F24),"",Expense_Entry!F24) -> SGD | G24: =IF(ISBLANK(Expense_Entry!G24),"",Expense_Entry!G24) -> $335.45 | H24: $335.45
A25: =IF(ISBLANK(Expense_Entry!A25),"",Expense_Entry!A25) -> 2011-03-15 | B25: =IF(ISBLANK(Expense_Entry!B25),"",Expense_Entry!B25) -> Starbucks | C25: =IF(ISBLANK(Expense_Entry!C25),"",Expense_Entry!C25) -> Coffee | D25: =IF(ISBLANK(Expense_Entry!D25),"",Expense_Entry!D25) -> Meals | E25: =IF(ISBLANK(Expense_Entry!E25),"",Expense_Entry!E25) -> AMEX | F25: =IF(ISBLANK(Expense_Entry!F25),"",Expense_Entry!F25) -> SGD | G25: =IF(ISBLANK(Expense_Entry!G25),"",Expense_Entry!G25) -> $7.10 | H25: $7.10
A26: =IF(ISBLANK(Expense_Entry!A26),"",Expense_Entry!A26) -> 2011-03-15 | B26: =IF(ISBLANK(Expense_Entry!B26),"",Expense_Entry!B26) -> Camera Comp | C26: =IF(ISBLANK(Expense_Entry!C26),"",Expense_Entry!C26) -> Laptop power cable | D26: =IF(ISBLANK(Expense_Entry!D26),"",Expense_Entry!D26) -> Misc. | E26: =IF(ISBLANK(Expense_Entry!E26),"",Expense_Entry!E26) -> AMEX | F26: =IF(ISBLANK(Expense_Entry!F26),"",Expense_Entry!F26) -> SGD | G26: =IF(ISBLANK(Expense_Entry!G26),"",Expense_Entry!G26) -> $25.00 | H26: $25.00
A27: =IF(ISBLANK(Expense_Entry!A27),"",Expense_Entry!A27) -> 2011-03-15 | B27: =IF(ISBLANK(Expense_Entry!B27),"",Expense_Entry!B27) -> SingTel | C27: =IF(ISBLANK(Expense_Entry!C27),"",Expense_Entry!C27) -> Data SIM | D27: =IF(ISBLANK(Expense_Entry!D27),"",Expense_Entry!D27) -> Phone | E27: =IF(ISBLANK(Expense_Entry!E27),"",Expense_Entry!E27) -> AMEX | F27: =IF(ISBLANK(Expense_Entry!F27),"",Expense_Entry!F27) -> SGD | G27: =IF(ISBLANK(Expense_Entry!G27),"",Expense_Entry!G27) -> $18.00 | H27: $18.00
A28: =IF(ISBLANK(Expense_Entry!A28),"",Expense_Entry!A28) -> 2011-03-15 | B28: =IF(ISBLANK(Expense_Entry!B28),"",Expense_Entry!B28) -> Citycab | C28: =IF(ISBLANK(Expense_Entry!C28),"",Expense_Entry!C28) -> Taxi to hotel | D28: =IF(ISBLANK(Expense_Entry!D28),"",Expense_Entry!D28) -> Taxi | E28: =IF(ISBLANK(Expense_Entry!E28),"",Expense_Entry!E28) -> AMEX | F28: =IF(ISBLANK(Expense_Entry!F28),"",Expense_Entry!F28) -> SGD | G28: =IF(ISBLANK(Expense_Entry!G28),"",Expense_Entry!G28) -> $30.55 | H28: $30.55
A29: =IF(ISBLANK(Expense_Entry!A29),"",Expense_Entry!A29) -> 2011-03-15 | B29: =IF(ISBLANK(Expense_Entry!B29),"",Expense_Entry!B29) -> Concorde Hotel | C29: =IF(ISBLANK(Expense_Entry!C29),"",Expense_Entry!C29) -> Hotel | D29: =IF(ISBLANK(Expense_Entry!D29),"",Expense_Entry!D29) -> Hotel | E29: =IF(ISBLANK(Expense_Entry!E29),"",Expense_Entry!E29) -> AMEX | F29: =IF(ISBLANK(Expense_Entry!F29),"",Expense_Entry!F29) -> SGD | G29: =IF(ISBLANK(Expense_Entry!G29),"",Expense_Entry!G29) -> $335.45 | H29: $335.45
A30: =IF(ISBLANK(Expense_Entry!A30),"",Expense_Entry!A30) -> 2011-03-15 | B30: =IF(ISBLANK(Expense_Entry!B30),"",Expense_Entry!B30) -> SingTel | C30: =IF(ISBLANK(Expense_Entry!C30),"",Expense_Entry!C30) -> Lunch | D30: =IF(ISBLANK(Expense_Entry!D30),"",Expense_Entry!D30) -> Meals | E30: =IF(ISBLANK(Expense_Entry!E30),"",Expense_Entry!E30) -> Cash | F30: =IF(ISBLANK(Expense_Entry!F30),"",Expense_Entry!F30) -> SGD | G30: =IF(ISBLANK(Expense_Entry!G30),"",Expense_Entry!G30) -> $2.80 | H30: $2.80
A31: =IF(ISBLANK(Expense_Entry!A31),"",Expense_Entry!A31) -> 2011-03-16 | B31: =IF(ISBLANK(Expense_Entry!B31),"",Expense_Entry!B31) -> Starbucks | C31: =IF(ISBLANK(Expense_Entry!C31),"",Expense_Entry!C31) -> Coffee | D31: =IF(ISBLANK(Expense_Entry!D31),"",Expense_Entry!D31) -> Meals | E31: =IF(ISBLANK(Expense_Entry!E31),"",Expense_Entry!E31) -> AMEX | F31: =IF(ISBLANK(Expense_Entry!F31),"",Expense_Entry!F31) -> SGD | G31: =IF(ISBLANK(Expense_Entry!G31),"",Expense_Entry!G31) -> $7.10 | H31: $7.10
A32: =IF(ISBLANK(Expense_Entry!A32),"",Expense_Entry!A32) -> 2011-03-16 | B32: =IF(ISBLANK(Expense_Entry!B32),"",Expense_Entry!B32) -> McDonald's | C32: =IF(ISBLANK(Expense_Entry!C32),"",Expense_Entry!C32) -> Dinner | D32: =IF(ISBLANK(Expense_Entry!D32),"",Expense_Entry!D32) -> Meals | E32: =IF(ISBLANK(Expense_Entry!E32),"",Expense_Entry!E32) -> Cash | F32: =IF(ISBLANK(Expense_Entry!F32),"",Expense_Entry!F32) -> SGD | G32: =IF(ISBLANK(Expense_Entry!G32),"",Expense_Entry!G32) -> $2.30 | H32: $2.30
A33: =IF(ISBLANK(Expense_Entry!A33),"",Expense_Entry!A33) -> 2011-03-16 | B33: =IF(ISBLANK(Expense_Entry!B33),"",Expense_Entry!B33) -> Cold Storage | C33: =IF(ISBLANK(Expense_Entry!C33),"",Expense_Entry!C33) -> Dinner | D33: =IF(ISBLANK(Expense_Entry!D33),"",Expense_Entry!D33) -> Meals | E33: =IF(ISBLANK(Expense_Entry!E33),"",Expense_Entry!E33) -> AMEX | F33: =IF(ISBLANK(Expense_Entry!F33),"",Expense_Entry!F33) -> SGD | G33: =IF(ISBLANK(Expense_Entry!G33),"",Expense_Entry!G33) -> $13.80 | H33: $13.80
A34: =IF(ISBLANK(Expense_Entry!A34),"",Expense_Entry!A34) -> 2011-03-16 | B34: =IF(ISBLANK(Expense_Entry!B34),"",Expense_Entry!B34) -> Concorde Hotel | C34: =IF(ISBLANK(Expense_Entry!C34),"",Expense_Entry!C34) -> Hotel | D34: =IF(ISBLANK(Expense_Entry!D34),"",Expense_Entry!D34) -> Hotel | E34: =IF(ISBLANK(Expense_Entry!E34),"",Expense_Entry!E34) -> AMEX | F34: =IF(ISBLANK(Expense_Entry!F34),"",Expense_Entry!F34) -> SGD | G34: =IF(ISBLANK(Expense_Entry!G34),"",Expense_Entry!G34) -> $335.45 | H34: $335.45
A35: =IF(ISBLANK(Expense_Entry!A35),"",Expense_Entry!A35) -> 2011-03-16 | B35: =IF(ISBLANK(Expense_Entry!B35),"",Expense_Entry!B35) -> SingTel | C35: =IF(ISBLANK(Expense_Entry!C35),"",Expense_Entry!C35) -> Lunch | D35: =IF(ISBLANK(Expense_Entry!D35),"",Expense_Entry!D35) -> Meals | E35: =IF(ISBLANK(Expense_Entry!E35),"",Expense_Entry!E35) -> Cash | F35: =IF(ISBLANK(Expense_Entry!F35),"",Expense_Entry!F35) -> SGD | G35: =IF(ISBLANK(Expense_Entry!G35),"",Expense_Entry!G35) -> $30.00 | H35: $30.00
A36: =IF(ISBLANK(Expense_Entry!A36),"",Expense_Entry!A36) -> 2011-03-17 | B36: =IF(ISBLANK(Expense_Entry!B36),"",Expense_Entry!B36) -> Starbucks | C36: =IF(ISBLANK(Expense_Entry!C36),"",Expense_Entry!C36) -> Coffee | D36: =IF(ISBLANK(Expense_Entry!D36),"",Expense_Entry!D36) -> Meals | E36: =IF(ISBLANK(Expense_Entry!E36),"",Expense_Entry!E36) -> AMEX | F36: =IF(ISBLANK(Expense_Entry!F36),"",Expense_Entry!F36) -> SGD | G36: =IF(ISBLANK(Expense_Entry!G36),"",Expense_Entry!G36) -> $7.10 | H36: $7.10
A37: =IF(ISBLANK(Expense_Entry!A37),"",Expense_Entry!A37) -> 2011-03-17 | B37: =IF(ISBLANK(Expense_Entry!B37),"",Expense_Entry!B37) -> Cold Storage | C37: =IF(ISBLANK(Expense_Entry!C37),"",Expense_Entry!C37) -> Dinner | D37: =IF(ISBLANK(Expense_Entry!D37),"",Expense_Entry!D37) -> Meals | E37: =IF(ISBLANK(Expense_Entry!E37),"",Expense_Entry!E37) -> AMEX | F37: =IF(ISBLANK(Expense_Entry!F37),"",Expense_Entry!F37) -> SGD | G37: =IF(ISBLANK(Expense_Entry!G37),"",Expense_Entry!G37) -> $8.10 | H37: $8.10
A38: =IF(ISBLANK(Expense_Entry!A38),"",Expense_Entry!A38) -> 2011-03-17 | B38: =IF(ISBLANK(Expense_Entry!B38),"",Expense_Entry!B38) -> Concorde Hotel | C38: =IF(ISBLANK(Expense_Entry!C38),"",Expense_Entry!C38) -> Hotel | D38: =IF(ISBLANK(Expense_Entry!D38),"",Expense_Entry!D38) -> Hotel | E38: =IF(ISBLANK(Expense_Entry!E38),"",Expense_Entry!E38) -> AMEX | F38: =IF(ISBLANK(Expense_Entry!F38),"",Expense_Entry!F38) -> SGD | G38: =IF(ISBLANK(Expense_Entry!G38),"",Expense_Entry!G38) -> $335.45 | H38: $335.45
A39: =IF(ISBLANK(Expense_Entry!A39),"",Expense_Entry!A39) -> 2011-03-17 | B39: =IF(ISBLANK(Expense_Entry!B39),"",Expense_Entry!B39) -> Concorde Hotel | C39: =IF(ISBLANK(Expense_Entry!C39),"",Expense_Entry!C39) -> Laundry | D39: =IF(ISBLANK(Expense_Entry!D39),"",Expense_Entry!D39) -> Misc. | E39: =IF(ISBLANK(Expense_Entry!E39),"",Expense_Entry!E39) -> AMEX | F39: =IF(ISBLANK(Expense_Entry!F39),"",Expense_Entry!F39) -> SGD | G39: =IF(ISBLANK(Expense_Entry!G39),"",Expense_Entry!G39) -> $32.49 | H39: $32.49
A40: =IF(ISBLANK(Expense_Entry!A40),"",Expense_Entry!A40) -> 2011-03-17 | B40: =IF(ISBLANK(Expense_Entry!B40),"",Expense_Entry!B40) -> Concorde Hotel | C40: =IF(ISBLANK(Expense_Entry!C40),"",Expense_Entry!C40) -> Telephone | D40: =IF(ISBLANK(Expense_Entry!D40),"",Expense_Entry!D40) -> Phone | E40: =IF(ISBLANK(Expense_Entry!E40),"",Expense_Entry!E40) -> AMEX | F40: =IF(ISBLANK(Expense_Entry!F40),"",Expense_Entry!F40) -> SGD | G40: =IF(ISBLANK(Expense_Entry!G40),"",Expense_Entry!G40) -> $0.43 | H40: $0.43
A41: =IF(ISBLANK(Expense_Entry!A41),"",Expense_Entry!A41) -> 2011-03-17 | B41: =IF(ISBLANK(Expense_Entry!B41),"",Expense_Entry!B41) -> Concorde Hotel | C41: =IF(ISBLANK(Expense_Entry!C41),"",Expense_Entry!C41) -> Dinner | D41: =IF(ISBLANK(Expense_Entry!D41),"",Expense_Entry!D41) -> Meals | E41: =IF(ISBLANK(Expense_Entry!E41),"",Expense_Entry!E41) -> AMEX | F41: =IF(ISBLANK(Expense_Entry!F41),"",Expense_Entry!F41) -> SGD | G41: =IF(ISBLANK(Expense_Entry!G41),"",Expense_Entry!G41) -> $27.07 | H41: $27.07
A42: =IF(ISBLANK(Expense_Entry!A42),"",Expense_Entry!A42) -> 2011-03-17 | B42: =IF(ISBLANK(Expense_Entry!B42),"",Expense_Entry!B42) -> SingTel | C42: =IF(ISBLANK(Expense_Entry!C42),"",Expense_Entry!C42) -> Lunch | D42: =IF(ISBLANK(Expense_Entry!D42),"",Expense_Entry!D42) -> Meals | E42: =IF(ISBLANK(Expense_Entry!E42),"",Expense_Entry!E42) -> Cash | F42: =IF(ISBLANK(Expense_Entry!F42),"",Expense_Entry!F42) -> SGD | G42: =IF(ISBLANK(Expense_Entry!G42),"",Expense_Entry!G42) -> $2.00 | H42: $2.00
A43: =IF(ISBLANK(Expense_Entry!A43),"",Expense_Entry!A43) -> 2011-03-18 | B43: =IF(ISBLANK(Expense_Entry!B43),"",Expense_Entry!B43) -> Youniqe Bistro | C43: =IF(ISBLANK(Expense_Entry!C43),"",Expense_Entry!C43) -> Coffee | D43: =IF(ISBLANK(Expense_Entry!D43),"",Expense_Entry!D43) -> Meals | E43: =IF(ISBLANK(Expense_Entry!E43),"",Expense_Entry!E43) -> Cash | F43: =IF(ISBLANK(Expense_Entry!F43),"",Expense_Entry!F43) -> SGD | G43: =IF(ISBLANK(Expense_Entry!G43),"",Expense_Entry!G43) -> $3.20 | H43: =IF(OR(F43="",G43=""),"",ROUND(G43/VLOOKUP(F43,FX_Rate_Tbl,2,FALSE),2)) -> $3.20
A44: =IF(ISBLANK(Expense_Entry!A44),"",Expense_Entry!A44) -> 2011-03-18 | B44: =IF(ISBLANK(Expense_Entry!B44),"",Expense_Entry!B44) -> Starbucks | C44: =IF(ISBLANK(Expense_Entry!C44),"",Expense_Entry!C44) -> Coffee | D44: =IF(ISBLANK(Expense_Entry!D44),"",Expense_Entry!D44) -> Meals | E44: =IF(ISBLANK(Expense_Entry!E44),"",Expense_Entry!E44) -> AMEX | F44: =IF(ISBLANK(Expense_Entry!F44),"",Expense_Entry!F44) -> SGD | G44: =IF(ISBLANK(Expense_Entry!G44),"",Expense_Entry!G44) -> $7.10 | H44: $7.10
A45: =IF(ISBLANK(Expense_Entry!A45),"",Expense_Entry!A45) -> 2011-03-18 | B45: =IF(ISBLANK(Expense_Entry!B45),"",Expense_Entry!B45) -> CS Centrepoint | C45: =IF(ISBLANK(Expense_Entry!C45),"",Expense_Entry!C45) -> Dinner | D45: =IF(ISBLANK(Expense_Entry!D45),"",Expense_Entry!D45) -> Meals | E45: =IF(ISBLANK(Expense_Entry!E45),"",Expense_Entry!E45) -> Cash | F45: =IF(ISBLANK(Expense_Entry!F45),"",Expense_Entry!F45) -> SGD | G45: =IF(ISBLANK(Expense_Entry!G45),"",Expense_Entry!G45) -> $3.40 | H45: $3.40
A46: =IF(ISBLANK(Expense_Entry!A46),"",Expense_Entry!A46) -> 2011-03-18 | B46: =IF(ISBLANK(Expense_Entry!B46),"",Expense_Entry!B46) -> SingTel | C46: =IF(ISBLANK(Expense_Entry!C46),"",Expense_Entry!C46) -> Data SIM | D46: =IF(ISBLANK(Expense_Entry!D46),"",Expense_Entry!D46) -> Phone | E46: =IF(ISBLANK(Expense_Entry!E46),"",Expense_Entry!E46) -> VISA | F46: =IF(ISBLANK(Expense_Entry!F46),"",Expense_Entry!F46) -> SGD | G46: =IF(ISBLANK(Expense_Entry!G46),"",Expense_Entry!G46) -> $18.00 | H46: $18.00
A47: =IF(ISBLANK(Expense_Entry!A47),"",Expense_Entry!A47) -> 2011-03-18 | B47: =IF(ISBLANK(Expense_Entry!B47),"",Expense_Entry!B47) -> Cold Storage | C47: =IF(ISBLANK(Expense_Entry!C47),"",Expense_Entry!C47) -> Dinner | D47: =IF(ISBLANK(Expense_Entry!D47),"",Expense_Entry!D47) -> Meals | E47: =IF(ISBLANK(Expense_Entry!E47),"",Expense_Entry!E47) -> AMEX | F47: =IF(ISBLANK(Expense_Entry!F47),"",Expense_Entry!F47) -> SGD | G47: =IF(ISBLANK(Expense_Entry!G47),"",Expense_Entry!G47) -> $19.90 | H47: $19.90
A48: =IF(ISBLANK(Expense_Entry!A48),"",Expense_Entry!A48) -> 2011-03-18 | B48: =IF(ISBLANK(Expense_Entry!B48),"",Expense_Entry!B48) -> Concorde Hotel | C48: =IF(ISBLANK(Expense_Entry!C48),"",Expense_Entry!C48) -> Hotel | D48: =IF(ISBLANK(Expense_Entry!D48),"",Expense_Entry!D48) -> Hotel | E48: =IF(ISBLANK(Expense_Entry!E48),"",Expense_Entry!E48) -> AMEX | F48: =IF(ISBLANK(Expense_Entry!F48),"",Expense_Entry!F48) -> SGD | G48: =IF(ISBLANK(Expense_Entry!G48),"",Expense_Entry!G48) -> $335.45 | H48: $335.45
A49: =IF(ISBLANK(Expense_Entry!A49),"",Expense_Entry!A49) -> 2011-03-18 | B49: =IF(ISBLANK(Expense_Entry!B49),"",Expense_Entry!B49) -> SingTel | C49: =IF(ISBLANK(Expense_Entry!C49),"",Expense_Entry!C49) -> Lunch | D49: =IF(ISBLANK(Expense_Entry!D49),"",Expense_Entry!D49) -> Meals | E49: =IF(ISBLANK(Expense_Entry!E49),"",Expense_Entry!E49) -> Cash | F49: =IF(ISBLANK(Expense_Entry!F49),"",Expense_Entry!F49) -> SGD | G49: =IF(ISBLANK(Expense_Entry!G49),"",Expense_Entry!G49) -> $10.00 | H49: $10.00
A50: =IF(ISBLANK(Expense_Entry!A50),"",Expense_Entry!A50) -> 2011-03-19 | B50: =IF(ISBLANK(Expense_Entry!B50),"",Expense_Entry!B50) -> Concorde Hotel | C50: =IF(ISBLANK(Expense_Entry!C50),"",Expense_Entry!C50) -> Hotel | D50: =IF(ISBLANK(Expense_Entry!D50),"",Expense_Entry!D50) -> Hotel | E50: =IF(ISBLANK(Expense_Entry!E50),"",Expense_Entry!E50) -> AMEX | F50: =IF(ISBLANK(Expense_Entry!F50),"",Expense_Entry!F50) -> SGD | G50: =IF(ISBLANK(Expense_Entry!G50),"",Expense_Entry!G50) -> $335.45 | H50: $335.45
A51: =IF(ISBLANK(Expense_Entry!A51),"",Expense_Entry!A51) -> 2011-03-19 | B51: =IF(ISBLANK(Expense_Entry!B51),"",Expense_Entry!B51) -> Starbucks | C51: =IF(ISBLANK(Expense_Entry!C51),"",Expense_Entry!C51) -> Coffee | D51: =IF(ISBLANK(Expense_Entry!D51),"",Expense_Entry!D51) -> Meals | E51: =IF(ISBLANK(Expense_Entry!E51),"",Expense_Entry!E51) -> AMEX | F51: =IF(ISBLANK(Expense_Entry!F51),"",Expense_Entry!F51) -> SGD | G51: =IF(ISBLANK(Expense_Entry!G51),"",Expense_Entry!G51) -> $5.50 | H51: $5.50
A52: =IF(ISBLANK(Expense_Entry!A52),"",Expense_Entry!A52) -> 2011-03-19 | B52: =IF(ISBLANK(Expense_Entry!B52),"",Expense_Entry!B52) -> Cold Storage | C52: =IF(ISBLANK(Expense_Entry!C52),"",Expense_Entry!C52) -> Snack | D52: =IF(ISBLANK(Expense_Entry!D52),"",Expense_Entry!D52) -> Meals | E52: =IF(ISBLANK(Expense_Entry!E52),"",Expense_Entry!E52) -> Cash | F52: =IF(ISBLANK(Expense_Entry!F52),"",Expense_Entry!F52) -> SGD | G52: =IF(ISBLANK(Expense_Entry!G52),"",Expense_Entry!G52) -> $6.60 | H52: $6.60
A53: =IF(ISBLANK(Expense_Entry!A53),"",Expense_Entry!A53) -> 2011-03-20 | B53: =IF(ISBLANK(Expense_Entry!B53),"",Expense_Entry!B53) -> Concorde Hotel | C53: =IF(ISBLANK(Expense_Entry!C53),"",Expense_Entry!C53) -> Hotel | D53: =IF(ISBLANK(Expense_Entry!D53),"",Expense_Entry!D53) -> Hotel | E53: =IF(ISBLANK(Expense_Entry!E53),"",Expense_Entry!E53) -> AMEX | F53: =IF(ISBLANK(Expense_Entry!F53),"",Expense_Entry!F53) -> SGD | G53: =IF(ISBLANK(Expense_Entry!G53),"",Expense_Entry!G53) -> $335.45 | H53: $335.45
A54: =IF(ISBLANK(Expense_Entry!A54),"",Expense_Entry!A54) -> 2011-03-20 | B54: =IF(ISBLANK(Expense_Entry!B54),"",Expense_Entry!B54) -> Starbucks | C54: =IF(ISBLANK(Expense_Entry!C54),"",Expense_Entry!C54) -> Coffee | D54: =IF(ISBLANK(Expense_Entry!D54),"",Expense_Entry!D54) -> Meals | E54: =IF(ISBLANK(Expense_Entry!E54),"",Expense_Entry!E54) -> AMEX | F54: =IF(ISBLANK(Expense_Entry!F54),"",Expense_Entry!F54) -> SGD | G54: =IF(ISBLANK(Expense_Entry!G54),"",Expense_Entry!G54) -> $8.70 | H54: $8.70
A55: =IF(ISBLANK(Expense_Entry!A55),"",Expense_Entry!A55) -> 2011-03-20 | B55: =IF(ISBLANK(Expense_Entry!B55),"",Expense_Entry!B55) -> Starbucks | C55: =IF(ISBLANK(Expense_Entry!C55),"",Expense_Entry!C55) -> Coffee | D55: =IF(ISBLANK(Expense_Entry!D55),"",Expense_Entry!D55) -> Meals | E55: =IF(ISBLANK(Expense_Entry!E55),"",Expense_Entry!E55) -> AMEX | F55: =IF(ISBLANK(Expense_Entry!F55),"",Expense_Entry!F55) -> SGD | G55: =IF(ISBLANK(Expense_Entry!G55),"",Expense_Entry!G55) -> $5.80 | H55: $5.80
A56: =IF(ISBLANK(Expense_Entry!A56),"",Expense_Entry!A56) -> 2011-03-20 | B56: =IF(ISBLANK(Expense_Entry!B56),"",Expense_Entry!B56) -> Starbucks | C56: =IF(ISBLANK(Expense_Entry!C56),"",Expense_Entry!C56) -> Tip | D56: =IF(ISBLANK(Expense_Entry!D56),"",Expense_Entry!D56) -> Meals | E56: =IF(ISBLANK(Expense_Entry!E56),"",Expense_Entry!E56) -> Cash | F56: =IF(ISBLANK(Expense_Entry!F56),"",Expense_Entry!F56) -> SGD | G56: =IF(ISBLANK(Expense_Entry!G56),"",Expense_Entry!G56) -> $2.20 | H56: $2.20
A57: =IF(ISBLANK(Expense_Entry!A57),"",Expense_Entry!A57) -> 2011-03-21 | B57: =IF(ISBLANK(Expense_Entry!B57),"",Expense_Entry!B57) -> Concorde Hotel | C57: =IF(ISBLANK(Expense_Entry!C57),"",Expense_Entry!C57) -> Hotel | D57: =IF(ISBLANK(Expense_Entry!D57),"",Expense_Entry!D57) -> Hotel | E57: =IF(ISBLANK(Expense_Entry!E57),"",Expense_Entry!E57) -> AMEX | F57: =IF(ISBLANK(Expense_Entry!F57),"",Expense_Entry!F57) -> SGD | G57: =IF(ISBLANK(Expense_Entry!G57),"",Expense_Entry!G57) -> $335.45 | H57: $335.45
A58: =IF(ISBLANK(Expense_Entry!A58),"",Expense_Entry!A58) -> 2011-03-21 | B58: =IF(ISBLANK(Expense_Entry!B58),"",Expense_Entry!B58) -> Concorde Hotel | C58: =IF(ISBLANK(Expense_Entry!C58),"",Expense_Entry!C58) -> Laundry | D58: =IF(ISBLANK(Expense_Entry!D58),"",Expense_Entry!D58) -> Misc. | E58: =IF(ISBLANK(Expense_Entry!E58),"",Expense_Entry!E58) -> AMEX | F58: =IF(ISBLANK(Expense_Entry!F58),"",Expense_Entry!F58) -> SGD | G58: =IF(ISBLANK(Expense_Entry!G58),"",Expense_Entry!G58) -> $32.49 | H58: $32.49
A59: =IF(ISBLANK(Expense_Entry!A59),"",Expense_Entry!A59) -> 2011-03-21 | B59: =IF(ISBLANK(Expense_Entry!B59),"",Expense_Entry!B59) -> SingTel | C59: =IF(ISBLANK(Expense_Entry!C59),"",Expense_Entry!C59) -> BoM | D59: =IF(ISBLANK(Expense_Entry!D59),"",Expense_Entry!D59) -> Phone | E59: =IF(ISBLANK(Expense_Entry!E59),"",Expense_Entry!E59) -> AMEX | F59: =IF(ISBLANK(Expense_Entry!F59),"",Expense_Entry!F59) -> SGD | G59: =IF(ISBLANK(Expense_Entry!G59),"",Expense_Entry!G59) -> $18.00 | H59: $18.00
A60: =IF(ISBLANK(Expense_Entry!A60),"",Expense_Entry!A60) -> 2011-03-21 | B60: =IF(ISBLANK(Expense_Entry!B60),"",Expense_Entry!B60) -> Starbucks | C60: =IF(ISBLANK(Expense_Entry!C60),"",Expense_Entry!C60) -> Coffee | D60: =IF(ISBLANK(Expense_Entry!D60),"",Expense_Entry!D60) -> Meals | E60: =IF(ISBLANK(Expense_Entry!E60),"",Expense_Entry!E60) -> AMEX | F60: =IF(ISBLANK(Expense_Entry!F60),"",Expense_Entry!F60) -> SGD | G60: =IF(ISBLANK(Expense_Entry!G60),"",Expense_Entry!G60) -> $7.10 | H60: $7.10
A61: =IF(ISBLANK(Expense_Entry!A61),"",Expense_Entry!A61) -> 2011-03-21 | B61: =IF(ISBLANK(Expense_Entry!B61),"",Expense_Entry!B61) -> Cold Storage | C61: =IF(ISBLANK(Expense_Entry!C61),"",Expense_Entry!C61) -> Water | D61: =IF(ISBLANK(Expense_Entry!D61),"",Expense_Entry!D61) -> Meals | E61: =IF(ISBLANK(Expense_Entry!E61),"",Expense_Entry!E61) -> Cash | F61: =IF(ISBLANK(Expense_Entry!F61),"",Expense_Entry!F61) -> SGD | G61: =IF(ISBLANK(Expense_Entry!G61),"",Expense_Entry!G61) -> $2.15 | H61: $2.15
A62: =IF(ISBLANK(Expense_Entry!A62),"",Expense_Entry!A62) -> 2011-03-21 | B62: =IF(ISBLANK(Expense_Entry!B62),"",Expense_Entry!B62) -> SingTel | C62: =IF(ISBLANK(Expense_Entry!C62),"",Expense_Entry!C62) -> Lunch | D62: =IF(ISBLANK(Expense_Entry!D62),"",Expense_Entry!D62) -> Meals | E62: =IF(ISBLANK(Expense_Entry!E62),"",Expense_Entry!E62) -> Cash | F62: =IF(ISBLANK(Expense_Entry!F62),"",Expense_Entry!F62) -> SGD | G62: =IF(ISBLANK(Expense_Entry!G62),"",Expense_Entry!G62) -> $2.80 | H62: $2.80
A63: =IF(ISBLANK(Expense_Entry!A63),"",Expense_Entry!A63) -> 2011-03-22 | B63: =IF(ISBLANK(Expense_Entry!B63),"",Expense_Entry!B63) -> Concorde Hotel | C63: =IF(ISBLANK(Expense_Entry!C63),"",Expense_Entry!C63) -> Hotel | D63: =IF(ISBLANK(Expense_Entry!D63),"",Expense_Entry!D63) -> Hotel | E63: =IF(ISBLANK(Expense_Entry!E63),"",Expense_Entry!E63) -> AMEX | F63: =IF(ISBLANK(Expense_Entry!F63),"",Expense_Entry!F63) -> SGD | G63: =IF(ISBLANK(Expense_Entry!G63),"",Expense_Entry!G63) -> $335.45 | H63: $335.45
A64: =IF(ISBLANK(Expense_Entry!A64),"",Expense_Entry!A64) -> 2011-03-22 | B64: =IF(ISBLANK(Expense_Entry!B64),"",Expense_Entry!B64) -> Starbucks | C64: =IF(ISBLANK(Expense_Entry!C64),"",Expense_Entry!C64) -> Coffee | D64: =IF(ISBLANK(Expense_Entry!D64),"",Expense_Entry!D64) -> Meals | E64: =IF(ISBLANK(Expense_Entry!E64),"",Expense_Entry!E64) -> AMEX | F64: =IF(ISBLANK(Expense_Entry!F64),"",Expense_Entry!F64) -> SGD | G64: =IF(ISBLANK(Expense_Entry!G64),"",Expense_Entry!G64) -> $7.10 | H64: $7.10
A65: =IF(ISBLANK(Expense_Entry!A65),"",Expense_Entry!A65) -> 2011-03-22 | B65: =IF(ISBLANK(Expense_Entry!B65),"",Expense_Entry!B65) -> Cold Storage | C65: =IF(ISBLANK(Expense_Entry!C65),"",Expense_Entry!C65) -> Dinner | D65: =IF(ISBLANK(Expense_Entry!D65),"",Expense_Entry!D65) -> Meals | E65: =IF(ISBLANK(Expense_Entry!E65),"",Expense_Entry!E65) -> AMEX | F65: =IF(ISBLANK(Expense_Entry!F65),"",Expense_Entry!F65) -> SGD | G65: =IF(ISBLANK(Expense_Entry!G65),"",Expense_Entry!G65) -> $26.50 | H65: $26.50
A66: =IF(ISBLANK(Expense_Entry!A66),"",Expense_Entry!A66) -> 2011-03-22 | B66: =IF(ISBLANK(Expense_Entry!B66),"",Expense_Entry!B66) -> SingTel | C66: =IF(ISBLANK(Expense_Entry!C66),"",Expense_Entry!C66) -> Lunch | D66: =IF(ISBLANK(Expense_Entry!D66),"",Expense_Entry!D66) -> Meals | E66: =IF(ISBLANK(Expense_Entry!E66),"",Expense_Entry!E66) -> Cash | F66: =IF(ISBLANK(Expense_Entry!F66),"",Expense_Entry!F66) -> SGD | G66: =IF(ISBLANK(Expense_Entry!G66),"",Expense_Entry!G66) -> $5.50 | H66: $5.50
A67: =IF(ISBLANK(Expense_Entry!A67),"",Expense_Entry!A67) -> 2011-03-23 | B67: =IF(ISBLANK(Expense_Entry!B67),"",Expense_Entry!B67) -> Concorde Hotel | C67: =IF(ISBLANK(Expense_Entry!C67),"",Expense_Entry!C67) -> Hotel | D67: =IF(ISBLANK(Expense_Entry!D67),"",Expense_Entry!D67) -> Hotel | E67: =IF(ISBLANK(Expense_Entry!E67),"",Expense_Entry!E67) -> AMEX | F67: =IF(ISBLANK(Expense_Entry!F67),"",Expense_Entry!F67) -> SGD | G67: =IF(ISBLANK(Expense_Entry!G67),"",Expense_Entry!G67) -> $335.45 | H67: $335.45
A68: =IF(ISBLANK(Expense_Entry!A68),"",Expense_Entry!A68) -> 2011-03-23 | B68: =IF(ISBLANK(Expense_Entry!B68),"",Expense_Entry!B68) -> Starbucks | C68: =IF(ISBLANK(Expense_Entry!C68),"",Expense_Entry!C68) -> Coffee | D68: =IF(ISBLANK(Expense_Entry!D68),"",Expense_Entry!D68) -> Meals | E68: =IF(ISBLANK(Expense_Entry!E68),"",Expense_Entry!E68) -> AMEX | F68: =IF(ISBLANK(Expense_Entry!F68),"",Expense_Entry!F68) -> SGD | G68: =IF(ISBLANK(Expense_Entry!G68),"",Expense_Entry!G68) -> $7.90 | H68: $7.90
A69: =IF(ISBLANK(Expense_Entry!A69),"",Expense_Entry!A69) -> 2011-03-23 | B69: =IF(ISBLANK(Expense_Entry!B69),"",Expense_Entry!B69) -> Burger King | C69: =IF(ISBLANK(Expense_Entry!C69),"",Expense_Entry!C69) -> Lunch | D69: =IF(ISBLANK(Expense_Entry!D69),"",Expense_Entry!D69) -> Meals | E69: =IF(ISBLANK(Expense_Entry!E69),"",Expense_Entry!E69) -> Cash | F69: =IF(ISBLANK(Expense_Entry!F69),"",Expense_Entry!F69) -> SGD | G69: =IF(ISBLANK(Expense_Entry!G69),"",Expense_Entry!G69) -> $7.65 | H69: $7.65
A70: =IF(ISBLANK(Expense_Entry!A70),"",Expense_Entry!A70) -> 2011-03-23 | B70: =IF(ISBLANK(Expense_Entry!B70),"",Expense_Entry!B70) -> Starbucks | C70: =IF(ISBLANK(Expense_Entry!C70),"",Expense_Entry!C70) -> Coffee | D70: =IF(ISBLANK(Expense_Entry!D70),"",Expense_Entry!D70) -> Meals | E70: =IF(ISBLANK(Expense_Entry!E70),"",Expense_Entry!E70) -> AMEX | F70: =IF(ISBLANK(Expense_Entry!F70),"",Expense_Entry!F70) -> HKG | G70: =IF(ISBLANK(Expense_Entry!G70),"",Expense_Entry!G70) -> $26.00 | H70: $4.16
G71: Total: | H71: =SUM(H11:H70) -> $17,834.82

Sheet ExpenseDB
A1: Expense Database
B3: The purpose of this worksheet is to perform calculations on the entries in the Expense_Entry worksheet to produce all the possible values possibly needed to satisfy
B4: a corporate expense voucher submission.
B6: Employee: | C6: =Employee -> Employee Name | H6: Reimbursement Owed | I6: =GETPIVOTDATA("Reim Amt.",$A$73) -> $14,259.83 | L6: Expense Gain/Loss: | M6: =Actual_Reimbursed_Amt-Reimbursement_Owed -> $(59.83)
B7: Reimbursement Currency: | C7: =Reimbursement_Currency -> CAD | H7: Actual Reimbursed Amount: | I7: $14,200.00 | K7: =IFERROR(IF(Expense_Gain_Loss<0,"WARNING: unrecovered amount!",""),"") -> WARNING: unrecovered amount!
H9: Reimbursement Data | L9: Invoice Data
A10: Date | B10: Establishment | C10: Description | D10: Type | E10: Method | F10: Currency | G10: Exp. Amt. | H10: R-Fx Rate Conv. | I10: R-Fx Rate | J10: Reim Amt. | K10: a | L10: I-Fx Rate Conv. | M10: I-Fx Rate | N10: Inv. Amt.
A11: =Expense_Entry!A11 -> 2011-03-11 | B11: =Expense_Entry!B11 -> Mileage | C11: =Expense_Entry!C11 -> Drive to/from YOW (38 miles) | D11: =Expense_Entry!D11 -> Mileage | E11: =Expense_Entry!E11 -> Mileage | F11: =Expense_Entry!F11 -> USD | G11: =Expense_Entry!G11 -> $21.09 | H11: =IF(AND(F11<>"",Reimbursement_Currency<>""),IF(F11=Reimbursement_Currency,STR_N_A,CONCATENATE(F11,STR_TO,Reimbursement_Currency)),"") -> USD to CAD | I11: =IF(F11=Reimbursement_Currency,1,IF(G11="","",G11/Expense_Entry!$J11)) -> 1.0672 | J11: =IF(F11<>"",IF(Reimbursement_Currency=F11,G11,ROUND(G11/I11,2)),"") -> $19.76 | L11: =IF(AND(Client_Currency<>"",F11<>""),IF(Client_Currency=F11,STR_N_A,CONCATENATE(F11,STR_TO,Client_Currency)),"") -> USD to SGD | M11: =IF(G11="","",VLOOKUP(Client_Currency,Expense_Entry!FX_Rate_Tbl,2,FALSE())/VLOOKUP(F11,Expense_Entry!FX_Rate_Tbl,2,FALSE())) -> 1.3323 | N11: =IF(AND(Client_Currency<>"",F11<>""),IF(Client_Currency=G11,G11,ROUND(G11*M11,2)),"") -> $28.10
A12: =Expense_Entry!A12 -> 2011-03-11 | B12: =Expense_Entry!B12 -> Ottawa Airport | C12: =Expense_Entry!C12 -> Parking | D12: =Expense_Entry!D12 -> Parking | E12: =Expense_Entry!E12 -> AMEX | F12: =Expense_Entry!F12 -> CAD | G12: =Expense_Entry!G12 -> $6.00 | H12: N/A | I12: =IF(F12=Reimbursement_Currency,1,IF(G12="","",G12/Expense_Entry!$J12)) -> 1.0000 | J12: $6.00 | L12: CAD to SGD | M12: =IF(G12="","",VLOOKUP(Client_Currency,Expense_Entry!FX_Rate_Tbl,2,FALSE())/VLOOKUP(F12,Expense_Entry!FX_Rate_Tbl,2,FALSE())) -> 1.2484 | N12: $7.49
A13: =Expense_Entry!A13 -> 2011-03-11 | B13: =Expense_Entry!B13 -> Cold Storage | C13: =Expense_Entry!C13 -> Dinner | D13: =Expense_Entry!D13 -> Meals | E13: =Expense_Entry!E13 -> AMEX | F13: =Expense_Entry!F13 -> SGD | G13: =Expense_Entry!G13 -> $8.60 | H13: SGD to CAD | I13: =IF(F13=Reimbursement_Currency,1,IF(G13="","",G13/Expense_Entry!$J13)) -> 1.2610 | J13: $6.82 | L13: N/A | M13: =IF(G13="","",VLOOKUP(Client_Currency,Expense_Entry!FX_Rate_Tbl,2,FALSE())/VLOOKUP(F13,Expense_Entry!FX_Rate_Tbl,2,FALSE())) -> 1.0000 | N13: $8.60
A14: =Expense_Entry!A14 -> 2011-03-11 | B14: =Expense_Entry!B14 -> Starbucks | C14: =Expense_Entry!C14 -> Coffee | D14: =Expense_Entry!D14 -> Meals | E14: =Expense_Entry!E14 -> AMEX | F14: =Expense_Entry!F14 -> SGD | G14: =Expense_Entry!G14 -> $7.90 | H14: SGD to CAD | I14: =IF(F14=Reimbursement_Currency,1,IF(G14="","",G14/Expense_Entry!$J14)) -> 1.2600 | J14: $6.27 | L14: N/A | M14: =IF(G14="","",VLOOKUP(Client_Currency,Expense_Entry!FX_Rate_Tbl,2,FALSE())/VLOOKUP(F14,Expense_Entry!FX_Rate_Tbl,2,FALSE())) -> 1.0000 | N14: $7.90
A15: =Expense_Entry!A15 -> 2011-03-12 | B15: =Expense_Entry!B15 -> Starbucks | C15: =Expense_Entry!C15 -> Coffee | D15: =Expense_Entry!D15 -> Meals | E15: =Expense_Entry!E15 -> AMEX | F15: =Expense_Entry!F15 -> CAD | G15: =Expense_Entry!G15 -> $4.71 | H15: N/A | I15: =IF(F15=Reimbursement_Currency,1,IF(G15="","",G15/Expense_Entry!$J15)) -> 1.0000 | J15: $4.71 | L15: CAD to SGD | M15: =IF(G15="","",VLOOKUP(Client_Currency,Expense_Entry!FX_Rate_Tbl,2,FALSE())/VLOOKUP(F15,Expense_Entry!FX_Rate_Tbl,2,FALSE())) -> 1.2484 | N15: $5.88
A16: =Expense_Entry!A16 -> 2011-03-12 | B16: =Expense_Entry!B16 -> Airport Taxi | C16: =Expense_Entry!C16 -> Taxi to hotel | D16: =Expense_Entry!D16 -> Taxi | E16: =Expense_Entry!E16 -> Cash | F16: =Expense_Entry!F16 -> CAD | G16: =Expense_Entry!G16 -> $20.00 | H16: N/A | I16: =IF(F16=Reimbursement_Currency,1,IF(G16="","",G16/Expense_Entry!$J16)) -> 1.0000 | J16: $20.00 | L16: CAD to SGD | M16: =IF(G16="","",VLOOKUP(Client_Currency,Expense_Entry!FX_Rate_Tbl,2,FALSE())/VLOOKUP(F16,Expense_Entry!FX_Rate_Tbl,2,FALSE())) -> 1.2484 | N16: $24.97
A17: =Expense_Entry!A17 -> 2011-03-12 | B17: =Expense_Entry!B17 -> YYZ Marriott | C17: =Expense_Entry!C17 -> Dinner | D17: =Expense_Entry!D17 -> Meals | E17: =Expense_Entry!E17 -> AMEX | F17: =Expense_Entry!F17 -> CAD | G17: =Expense_Entry!G17 -> $43.42 | H17: N/A | I17: =IF(F17=Reimbursement_Currency,1,IF(G17="","",G17/Expense_Entry!$J17)) -> 1.0000 | J17: $43.42 | L17: CAD to SGD | M17: =IF(G17="","",VLOOKUP(Client_Currency,Expense_Entry!FX_Rate_Tbl,2,FALSE())/VLOOKUP(F17,Expense_Entry!FX_Rate_Tbl,2,FALSE())) -> 1.2484 | N17: $54.21
A18: =Expense_Entry!A18 -> 2011-03-12 | B18: =Expense_Entry!B18 -> YYZ Marriott | C18: =Expense_Entry!C18 -> Hotel | D18: =Expense_Entry!D18 -> Hotel | E18: =Expense_Entry!E18 -> AMEX | F18: =Expense_Entry!F18 -> CAD | G18: =Expense_Entry!G18 -> $134.47 | H18: N/A | I18: =IF(F18=Reimbursement_Currency,1,IF(G18="","",G18/Expense_Entry!$J18)) -> 1.0000 | J18: $134.47 | L18: CAD to SGD | M18: =IF(G18="","",VLOOKUP(Client_Currency,Expense_Entry!FX_Rate_Tbl,2,FALSE())/VLOOKUP(F18,Expense_Entry!FX_Rate_Tbl,2,FALSE())) -> 1.2484 | N18: $167.88
A19: =Expense_Entry!A19 -> 2011-03-12 | B19: =Expense_Entry!B19 -> United Airlines | C19: =Expense_Entry!C19 -> Fly to SIN | D19: =Expense_Entry!D19 -> Airfare | E19: =Expense_Entry!E19 -> AMEX | F19: =Expense_Entry!F19 -> CAD | G19: =Expense_Entry!G19 -> $11,000.81 | H19: N/A | I19: =IF(F19=Reimbursement_Currency,1,IF(G19="","",G19/Expense_Entry!$J19)) -> 1.0000 | J19: $11,000.81 | L19: CAD to SGD | M19: =IF(G19="","",VLOOKUP(Client_Currency,Expense_Entry!FX_Rate_Tbl,2,FALSE())/VLOOKUP(F19,Expense_Entry!FX_Rate_Tbl,2,FALSE())) -> 1.2484 | N19: $13,733.79
A20: =Expense_Entry!A20 -> 2011-03-13 | B20: =Expense_Entry!B20 -> YYZ Marriott | C20: =Expense_Entry!C20 -> Tip maid | D20: =Expense_Entry!D20 -> Hotel | E20: =Expense_Entry!E20 -> Cash | F20: =Expense_Entry!F20 -> CAD | G20: =Expense_Entry!G20 -> $5.00 | H20: N/A | I20: =IF(F20=Reimbursement_Currency,1,IF(G20="","",G20/Expense_Entry!$J20)) -> 1.0000 | J20: $5.00 | L20: CAD to SGD | M20: =IF(G20="","",VLOOKUP(Client_Currency,Expense_Entry!FX_Rate_Tbl,2,FALSE())/VLOOKUP(F20,Expense_Entry!FX_Rate_Tbl,2,FALSE())) -> 1.2484 | N20: $6.24
A21: =Expense_Entry!A21 -> 2011-03-13 | B21: =Expense_Entry!B21 -> YYZ Marriott | C21: =Expense_Entry!C21 -> Laundry | D21: =Expense_Entry!D21 -> Misc. | E21: =Expense_Entry!E21 -> Cash | F21: =Expense_Entry!F21 -> CAD | G21: =Expense_Entry!G21 -> $2.50 | H21: N/A | I21: =IF(F21=Reimbursement_Currency,1,IF(G21="","",G21/Expense_Entry!$J21)) -> 1.0000 | J21: $2.50 | L21: CAD to SGD | M21: =IF(G21="","",VLOOKUP(Client_Currency,Expense_Entry!FX_Rate_Tbl,2,FALSE())/VLOOKUP(F21,Expense_Entry!FX_Rate_Tbl,2,FALSE())) -> 1.2484 | N21: $3.12
A22: =Expense_Entry!A22 -> 2011-03-13 | B22: =Expense_Entry!B22 -> YYZ Marriott | C22: =Expense_Entry!C22 -> Tip bellman | D22: =Expense_Entry!D22 -> Meals | E22: =Expense_Entry!E22 -> Cash | F22: =Expense_Entry!F22 -> USD | G22: =Expense_Entry!G22 -> $1.00 | H22: USD to CAD | I22: =IF(F22=Reimbursement_Currency,1,IF(G22="","",G22/Expense_Entry!$J22)) -> 0.9346 | J22: $1.07 | L22: USD to SGD | M22: =IF(G22="","",VLOOKUP(Client_Currency,Expense_Entry!FX_Rate_Tbl,2,FALSE())/VLOOKUP(F22,Expense_Entry!FX_Rate_Tbl,2,FALSE())) -> 1.3323 | N22: $1.33
A23: =Expense_Entry!A23 -> 2011-03-13 | B23: =Expense_Entry!B23 -> Starbucks | C23: =Expense_Entry!C23 -> Coffee | D23: =Expense_Entry!D23 -> Meals | E23: =Expense_Entry!E23 -> AMEX | F23: =Expense_Entry!F23 -> CAD | G23: =Expense_Entry!G23 -> $4.18 | H23: N/A | I23: =IF(F23=Reimbursement_Currency,1,IF(G23="","",G23/Expense_Entry!$J23)) -> 1.0000 | J23: $4.18 | L23: CAD to SGD | M23: =IF(G23="","",VLOOKUP(Client_Currency,Expense_Entry!FX_Rate_Tbl,2,FALSE())/VLOOKUP(F23,Expense_Entry!FX_Rate_Tbl,2,FALSE())) -> 1.2484 | N23: $5.22
A24: =Expense_Entry!A24 -> 2011-03-14 | B24: =Expense_Entry!B24 -> Concorde Hotel | C24: =Expense_Entry!C24 -> Hotel | D24: =Expense_Entry!D24 -> Hotel | E24: =Expense_Entry!E24 -> AMEX | F24: =Expense_Entry!F24 -> SGD | G24: =Expense_Entry!G24 -> $335.45 | H24: SGD to CAD | I24: =IF(F24=Reimbursement_Currency,1,IF(G24="","",G24/Expense_Entry!$J24)) -> 1.2580 | J24: $266.65 | L24: N/A | M24: =IF(G24="","",VLOOKUP(Client_Currency,Expense_Entry!FX_Rate_Tbl,2,FALSE())/VLOOKUP(F24,Expense_Entry!FX_Rate_Tbl,2,FALSE())) -> 1.0000 | N24: $335.45
A25: =Expense_Entry!A25 -> 2011-03-15 | B25: =Expense_Entry!B25 -> Starbucks | C25: =Expense_Entry!C25 -> Coffee | D25: =Expense_Entry!D25 -> Meals | E25: =Expense_Entry!E25 -> AMEX | F25: =Expense_Entry!F25 -> SGD | G25: =Expense_Entry!G25 -> $7.10 | H25: SGD to CAD | I25: =IF(F25=Reimbursement_Currency,1,IF(G25="","",G25/Expense_Entry!$J25)) -> 1.2580 | J25: $5.64 | L25: N/A | M25: =IF(G25="","",VLOOKUP(Client_Currency,Expense_Entry!FX_Rate_Tbl,2,FALSE())/VLOOKUP(F25,Expense_Entry!FX_Rate_Tbl,2,FALSE())) -> 1.0000 | N25: $7.10
A26: =Expense_Entry!A26 -> 2011-03-15 | B26: =Expense_Entry!B26 -> Camera Comp | C26: =Expense_Entry!C26 -> Laptop power cable | D26: =Expense_Entry!D26 -> Misc. | E26: =Expense_Entry!E26 -> AMEX | F26: =Expense_Entry!F26 -> SGD | G26: =Expense_Entry!G26 -> $25.00 | H26: SGD to CAD | I26: =IF(F26=Reimbursement_Currency,1,IF(G26="","",G26/Expense_Entry!$J26)) -> 1.2580 | J26: $19.87 | L26: N/A | M26: =IF(G26="","",VLOOKUP(Client_Currency,Expense_Entry!FX_Rate_Tbl,2,FALSE())/VLOOKUP(F26,Expense_Entry!FX_Rate_Tbl,2,FALSE())) -> 1.0000 | N26: $25.00
A27: =Expense_Entry!A27 -> 2011-03-15 | B27: =Expense_Entry!B27 -> SingTel | C27: =Expense_Entry!C27 -> Data SIM | D27: =Expense_Entry!D27 -> Phone | E27: =Expense_Entry!E27 -> AMEX | F27: =Expense_Entry!F27 -> SGD | G27: =Expense_Entry!G27 -> $18.00 | H27: SGD to CAD | I27: =IF(F27=Reimbursement_Currency,1,IF(G27="","",G27/Expense_Entry!$J27)) -> 1.2580 | J27: $14.31 | L27: N/A | M27: =IF(G27="","",VLOOKUP(Client_Currency,Expense_Entry!FX_Rate_Tbl,2,FALSE())/VLOOKUP(F27,Expense_Entry!FX_Rate_Tbl,2,FALSE())) -> 1.0000 | N27: $18.00
A28: =Expense_Entry!A28 -> 2011-03-15 | B28: =Expense_Entry!B28 -> Citycab | C28: =Expense_Entry!C28 -> Taxi to hotel | D28: =Expense_Entry!D28 -> Taxi | E28: =Expense_Entry!E28 -> AMEX | F28: =Expense_Entry!F28 -> SGD | G28: =Expense_Entry!G28 -> $30.55 | H28: SGD to CAD | I28: =IF(F28=Reimbursement_Currency,1,IF(G28="","",G28/Expense_Entry!$J28)) -> 1.2580 | J28: $24.28 | L28: N/A | M28: =IF(G28="","",VLOOKUP(Client_Currency,Expense_Entry!FX_Rate_Tbl,2,FALSE())/VLOOKUP(F28,Expense_Entry!FX_Rate_Tbl,2,FALSE())) -> 1.0000 | N28: $30.55
A29: =Expense_Entry!A29 -> 2011-03-15 | B29: =Expense_Entry!B29 -> Concorde Hotel | C29: =Expense_Entry!C29 -> Hotel | D29: =Expense_Entry!D29 -> Hotel | E29: =Expense_Entry!E29 -> AMEX | F29: =Expense_Entry!F29 -> SGD | G29: =Expense_Entry!G29 -> $335.45 | H29: SGD to CAD | I29: =IF(F29=Reimbursement_Currency,1,IF(G29="","",G29/Expense_Entry!$J29)) -> 1.2580 | J29: $266.65 | L29: N/A | M29: =IF(G29="","",VLOOKUP(Client_Currency,Expense_Entry!FX_Rate_Tbl,2,FALSE())/VLOOKUP(F29,Expense_Entry!FX_Rate_Tbl,2,FALSE())) -> 1.0000 | N29: $335.45
A30: =Expense_Entry!A30 -> 2011-03-15 | B30: =Expense_Entry!B30 -> SingTel | C30: =Expense_Entry!C30 -> Lunch | D30: =Expense_Entry!D30 -> Meals | E30: =Expense_Entry!E30 -> Cash | F30: =Expense_Entry!F30 -> SGD | G30: =Expense_Entry!G30 -> $2.80 | H30: SGD to CAD | I30: =IF(F30=Reimbursement_Currency,1,IF(G30="","",G30/Expense_Entry!$J30)) -> 1.2580 | J30: $2.23 | L30: N/A | M30: =IF(G30="","",VLOOKUP(Client_Currency,Expense_Entry!FX_Rate_Tbl,2,FALSE())/VLOOKUP(F30,Expense_Entry!FX_Rate_Tbl,2,FALSE())) -> 1.0000 | N30: $2.80
A31: =Expense_Entry!A31 -> 2011-03-16 | B31: =Expense_Entry!B31 -> Starbucks | C31: =Expense_Entry!C31 -> Coffee | D31: =Expense_Entry!D31 -> Meals | E31: =Expense_Entry!E31 -> AMEX | F31: =Expense_Entry!F31 -> SGD | G31: =Expense_Entry!G31 -> $7.10 | H31: SGD to CAD | I31: =IF(F31=Reimbursement_Currency,1,IF(G31="","",G31/Expense_Entry!$J31)) -> 1.2580 | J31: $5.64 | L31: N/A | M31: =IF(G31="","",VLOOKUP(Client_Currency,Expense_Entry!FX_Rate_Tbl,2,FALSE())/VLOOKUP(F31,Expense_Entry!FX_Rate_Tbl,2,FALSE())) -> 1.0000 | N31: $7.10
A32: =Expense_Entry!A32 -> 2011-03-16 | B32: =Expense_Entry!B32 -> McDonald's | C32: =Expense_Entry!C32 -> Dinner | D32: =Expense_Entry!D32 -> Meals | E32: =Expense_Entry!E32 -> Cash | F32: =Expense_Entry!F32 -> SGD | G32: =Expense_Entry!G32 -> $2.30 | H32: SGD to CAD | I32: =IF(F32=Reimbursement_Currency,1,IF(G32="","",G32/Expense_Entry!$J32)) -> 1.2580 | J32: $1.83 | L32: N/A | M32: =IF(G32="","",VLOOKUP(Client_Currency,Expense_Entry!FX_Rate_Tbl,2,FALSE())/VLOOKUP(F32,Expense_Entry!FX_Rate_Tbl,2,FALSE())) -> 1.0000 | N32: $2.30
A33: =Expense_Entry!A33 -> 2011-03-16 | B33: =Expense_Entry!B33 -> Cold Storage | C33: =Expense_Entry!C33 -> Dinner | D33: =Expense_Entry!D33 -> Meals | E33: =Expense_Entry!E33 -> AMEX | F33: =Expense_Entry!F33 -> SGD | G33: =Expense_Entry!G33 -> $13.80 | H33: SGD to CAD | I33: =IF(F33=Reimbursement_Currency,1,IF(G33="","",G33/Expense_Entry!$J33)) -> 1.2580 | J33: $10.97 | L33: N/A | M33: =IF(G33="","",VLOOKUP(Client_Currency,Expense_Entry!FX_Rate_Tbl,2,FALSE())/VLOOKUP(F33,Expense_Entry!FX_Rate_Tbl,2,FALSE())) -> 1.0000 | N33: $13.80
A34: =Expense_Entry!A34 -> 2011-03-16 | B34: =Expense_Entry!B34 -> Concorde Hotel | C34: =Expense_Entry!C34 -> Hotel | D34: =Expense_Entry!D34 -> Hotel | E34: =Expense_Entry!E34 -> AMEX | F34: =Expense_Entry!F34 -> SGD | G34: =Expense_Entry!G34 -> $335.45 | H34: SGD to CAD | I34: =IF(F34=Reimbursement_Currency,1,IF(G34="","",G34/Expense_Entry!$J34)) -> 1.2580 | J34: $266.65 | L34: N/A | M34: =IF(G34="","",VLOOKUP(Client_Currency,Expense_Entry!FX_Rate_Tbl,2,FALSE())/VLOOKUP(F34,Expense_Entry!FX_Rate_Tbl,2,FALSE())) -> 1.0000 | N34: $335.45
A35: =Expense_Entry!A35 -> 2011-03-16 | B35: =Expense_Entry!B35 -> SingTel | C35: =Expense_Entry!C35 -> Lunch | D35: =Expense_Entry!D35 -> Meals | E35: =Expense_Entry!E35 -> Cash | F35: =Expense_Entry!F35 -> SGD | G35: =Expense_Entry!G35 -> $30.00 | H35: SGD to CAD | I35: =IF(F35=Reimbursement_Currency,1,IF(G35="","",G35/Expense_Entry!$J35)) -> 1.2580 | J35: $23.85 | L35: N/A | M35: =IF(G35="","",VLOOKUP(Client_Currency,Expense_Entry!FX_Rate_Tbl,2,FALSE())/VLOOKUP(F35,Expense_Entry!FX_Rate_Tbl,2,FALSE())) -> 1.0000 | N35: $30.00
A36: =Expense_Entry!A36 -> 2011-03-17 | B36: =Expense_Entry!B36 -> Starbucks | C36: =Expense_Entry!C36 -> Coffee | D36: =Expense_Entry!D36 -> Meals | E36: =Expense_Entry!E36 -> AMEX | F36: =Expense_Entry!F36 -> SGD | G36: =Expense_Entry!G36 -> $7.10 | H36: SGD to CAD | I36: =IF(F36=Reimbursement_Currency,1,IF(G36="","",G36/Expense_Entry!$J36)) -> 1.2580 | J36: $5.64 | L36: N/A | M36: =IF(G36="","",VLOOKUP(Client_Currency,Expense_Entry!FX_Rate_Tbl,2,FALSE())/VLOOKUP(F36,Expense_Entry!FX_Rate_Tbl,2,FALSE())) -> 1.0000 | N36: $7.10
A37: =Expense_Entry!A37 -> 2011-03-17 | B37: =Expense_Entry!B37 -> Cold Storage | C37: =Expense_Entry!C37 -> Dinner | D37: =Expense_Entry!D37 -> Meals | E37: =Expense_Entry!E37 -> AMEX | F37: =Expense_Entry!F37 -> SGD | G37: =Expense_Entry!G37 -> $8.10 | H37: SGD to CAD | I37: =IF(F37=Reimbursement_Currency,1,IF(G37="","",G37/Expense_Entry!$J37)) -> 1.2580 | J37: $6.44 | L37: N/A | M37: =IF(G37="","",VLOOKUP(Client_Currency,Expense_Entry!FX_Rate_Tbl,2,FALSE())/VLOOKUP(F37,Expense_Entry!FX_Rate_Tbl,2,FALSE())) -> 1.0000 | N37: $8.10
A38: =Expense_Entry!A38 -> 2011-03-17 | B38: =Expense_Entry!B38 -> Concorde Hotel | C38: =Expense_Entry!C38 -> Hotel | D38: =Expense_Entry!D38 -> Hotel | E38: =Expense_Entry!E38 -> AMEX | F38: =Expense_Entry!F38 -> SGD | G38: =Expense_Entry!G38 -> $335.45 | H38: SGD to CAD | I38: =IF(F38=Reimbursement_Currency,1,IF(G38="","",G38/Expense_Entry!$J38)) -> 1.2580 | J38: $266.65 | L38: N/A | M38: =IF(G38="","",VLOOKUP(Client_Currency,Expense_Entry!FX_Rate_Tbl,2,FALSE())/VLOOKUP(F38,Expense_Entry!FX_Rate_Tbl,2,FALSE())) -> 1.0000 | N38: $335.45
A39: =Expense_Entry!A39 -> 2011-03-17 | B39: =Expense_Entry!B39 -> Concorde Hotel | C39: =Expense_Entry!C39 -> Laundry | D39: =Expense_Entry!D39 -> Misc. | E39: =Expense_Entry!E39 -> AMEX | F39: =Expense_Entry!F39 -> SGD | G39: =Expense_Entry!G39 -> $32.49 | H39: SGD to CAD | I39: =IF(F39=Reimbursement_Currency,1,IF(G39="","",G39/Expense_Entry!$J39)) -> 1.2580 | J39: $25.83 | L39: N/A | M39: =IF(G39="","",VLOOKUP(Client_Currency,Expense_Entry!FX_Rate_Tbl,2,FALSE())/VLOOKUP(F39,Expense_Entry!FX_Rate_Tbl,2,FALSE())) -> 1.0000 | N39: $32.49
A40: =Expense_Entry!A40 -> 2011-03-17 | B40: =Expense_Entry!B40 -> Concorde Hotel | C40: =Expense_Entry!C40 -> Telephone | D40: =Expense_Entry!D40 -> Phone | E40: =Expense_Entry!E40 -> AMEX | F40: =Expense_Entry!F40 -> SGD | G40: =Expense_Entry!G40 -> $0.43 | H40: SGD to CAD | I40: =IF(F40=Reimbursement_Currency,1,IF(G40="","",G40/Expense_Entry!$J40)) -> 1.2580 | J40: $0.34 | L40: N/A | M40: =IF(G40="","",VLOOKUP(Client_Currency,Expense_Entry!FX_Rate_Tbl,2,FALSE())/VLOOKUP(F40,Expense_Entry!FX_Rate_Tbl,2,FALSE())) -> 1.0000 | N40: $0.43
A41: =Expense_Entry!A41 -> 2011-03-17 | B41: =Expense_Entry!B41 -> Concorde Hotel | C41: =Expense_Entry!C41 -> Dinner | D41: =Expense_Entry!D41 -> Meals | E41: =Expense_Entry!E41 -> AMEX | F41: =Expense_Entry!F41 -> SGD | G41: =Expense_Entry!G41 -> $27.07 | H41: SGD to CAD | I41: =IF(F41=Reimbursement_Currency,1,IF(G41="","",G41/Expense_Entry!$J41)) -> 1.2580 | J41: $21.52 | L41: N/A | M41: =IF(G41="","",VLOOKUP(Client_Currency,Expense_Entry!FX_Rate_Tbl,2,FALSE())/VLOOKUP(F41,Expense_Entry!FX_Rate_Tbl,2,FALSE())) -> 1.0000 | N41: $27.07
A42: =Expense_Entry!A42 -> 2011-03-17 | B42: =Expense_Entry!B42 -> SingTel | C42: =Expense_Entry!C42 -> Lunch | D42: =Expense_Entry!D42 -> Meals | E42: =Expense_Entry!E42 -> Cash | F42: =Expense_Entry!F42 -> SGD | G42: =Expense_Entry!G42 -> $2.00 | H42: SGD to CAD | I42: =IF(F42=Reimbursement_Currency,1,IF(G42="","",G42/Expense_Entry!$J42)) -> 1.2580 | J42: $1.59 | L42: N/A | M42: =IF(G42="","",VLOOKUP(Client_Currency,Expense_Entry!FX_Rate_Tbl,2,FALSE())/VLOOKUP(F42,Expense_Entry!FX_Rate_Tbl,2,FALSE())) -> 1.0000 | N42: $2.00
A43: =Expense_Entry!A43 -> 2011-03-18 | B43: =Expense_Entry!B43 -> Youniqe Bistro | C43: =Expense_Entry!C43 -> Coffee | D43: =Expense_Entry!D43 -> Meals | E43: =Expense_Entry!E43 -> Cash | F43: =Expense_Entry!F43 -> SGD | G43: =Expense_Entry!G43 -> $3.20 | H43: =IF(AND(F43<>"",Reimbursement_Currency<>""),IF(F43=Reimbursement_Currency,STR_N_A,CONCATENATE(F43,STR_TO,Reimbursement_Currency)),"") -> SGD to CAD | I43: =IF(F43=Reimbursement_Currency,1,IF(G43="","",G43/Expense_Entry!$J43)) -> 1.2580 | J43: =IF(F43<>"",IF(Reimbursement_Currency=F43,G43,ROUND(G43/I43,2)),"") -> $2.54 | L43: =IF(AND(Client_Currency<>"",F43<>""),IF(Client_Currency=F43,STR_N_A,CONCATENATE(F43,STR_TO,Client_Currency)),"") -> N/A | M43: =IF(G43="","",VLOOKUP(Client_Currency,Expense_Entry!FX_Rate_Tbl,2,FALSE())/VLOOKUP(F43,Expense_Entry!FX_Rate_Tbl,2,FALSE())) -> 1.0000 | N43: =IF(AND(Client_Currency<>"",F43<>""),IF(Client_Currency=G43,G43,ROUND(G43*M43,2)),"") -> $3.20
A44: =Expense_Entry!A44 -> 2011-03-18 | B44: =Expense_Entry!B44 -> Starbucks | C44: =Expense_Entry!C44 -> Coffee | D44: =Expense_Entry!D44 -> Meals | E44: =Expense_Entry!E44 -> AMEX | F44: =Expense_Entry!F44 -> SGD | G44: =Expense_Entry!G44 -> $7.10 | H44: SGD to CAD | I44: =IF(F44=Reimbursement_Currency,1,IF(G44="","",G44/Expense_Entry!$J44)) -> 1.2580 | J44: $5.64 | L44: N/A | M44: =IF(G44="","",VLOOKUP(Client_Currency,Expense_Entry!FX_Rate_Tbl,2,FALSE())/VLOOKUP(F44,Expense_Entry!FX_Rate_Tbl,2,FALSE())) -> 1.0000 | N44: $7.10
A45: =Expense_Entry!A45 -> 2011-03-18 | B45: =Expense_Entry!B45 -> CS Centrepoint | C45: =Expense_Entry!C45 -> Dinner | D45: =Expense_Entry!D45 -> Meals | E45: =Expense_Entry!E45 -> Cash | F45: =Expense_Entry!F45 -> SGD | G45: =Expense_Entry!G45 -> $3.40 | H45: SGD to CAD | I45: =IF(F45=Reimbursement_Currency,1,IF(G45="","",G45/Expense_Entry!$J45)) -> 1.2580 | J45: $2.70 | L45: N/A | M45: =IF(G45="","",VLOOKUP(Client_Currency,Expense_Entry!FX_Rate_Tbl,2,FALSE())/VLOOKUP(F45,Expense_Entry!FX_Rate_Tbl,2,FALSE())) -> 1.0000 | N45: $3.40
A46: =Expense_Entry!A46 -> 2011-03-18 | B46: =Expense_Entry!B46 -> SingTel | C46: =Expense_Entry!C46 -> Data SIM | D46: =Expense_Entry!D46 -> Phone | E46: =Expense_Entry!E46 -> VISA | F46: =Expense_Entry!F46 -> SGD | G46: =Expense_Entry!G46 -> $18.00 | H46: SGD to CAD | I46: =IF(F46=Reimbursement_Currency,1,IF(G46="","",G46/Expense_Entry!$J46)) -> 1.2580 | J46: $14.31 | L46: N/A | M46: =IF(G46="","",VLOOKUP(Client_Currency,Expense_Entry!FX_Rate_Tbl,2,FALSE())/VLOOKUP(F46,Expense_Entry!FX_Rate_Tbl,2,FALSE())) -> 1.0000 | N46: $18.00
A47: =Expense_Entry!A47 -> 2011-03-18 | B47: =Expense_Entry!B47 -> Cold Storage | C47: =Expense_Entry!C47 -> Dinner | D47: =Expense_Entry!D47 -> Meals | E47: =Expense_Entry!E47 -> AMEX | F47: =Expense_Entry!F47 -> SGD | G47: =Expense_Entry!G47 -> $19.90 | H47: SGD to CAD | I47: =IF(F47=Reimbursement_Currency,1,IF(G47="","",G47/Expense_Entry!$J47)) -> 1.2580 | J47: $15.82 | L47: N/A | M47: =IF(G47="","",VLOOKUP(Client_Currency,Expense_Entry!FX_Rate_Tbl,2,FALSE())/VLOOKUP(F47,Expense_Entry!FX_Rate_Tbl,2,FALSE())) -> 1.0000 | N47: $19.90
A48: =Expense_Entry!A48 -> 2011-03-18 | B48: =Expense_Entry!B48 -> Concorde Hotel | C48: =Expense_Entry!C48 -> Hotel | D48: =Expense_Entry!D48 -> Hotel | E48: =Expense_Entry!E48 -> AMEX | F48: =Expense_Entry!F48 -> SGD | G48: =Expense_Entry!G48 -> $335.45 | H48: SGD to CAD | I48: =IF(F48=Reimbursement_Currency,1,IF(G48="","",G48/Expense_Entry!$J48)) -> 1.2580 | J48: $266.65 | L48: N/A | M48: =IF(G48="","",VLOOKUP(Client_Currency,Expense_Entry!FX_Rate_Tbl,2,FALSE())/VLOOKUP(F48,Expense_Entry!FX_Rate_Tbl,2,FALSE())) -> 1.0000 | N48: $335.45
A49: =Expense_Entry!A49 -> 2011-03-18 | B49: =Expense_Entry!B49 -> SingTel | C49: =Expense_Entry!C49 -> Lunch | D49: =Expense_Entry!D49 -> Meals | E49: =Expense_Entry!E49 -> Cash | F49: =Expense_Entry!F49 -> SGD | G49: =Expense_Entry!G49 -> $10.00 | H49: SGD to CAD | I49: =IF(F49=Reimbursement_Currency,1,IF(G49="","",G49/Expense_Entry!$J49)) -> 1.2580 | J49: $7.95 | L49: N/A | M49: =IF(G49="","",VLOOKUP(Client_Currency,Expense_Entry!FX_Rate_Tbl,2,FALSE())/VLOOKUP(F49,Expense_Entry!FX_Rate_Tbl,2,FALSE())) -> 1.0000 | N49: $10.00
A50: =Expense_Entry!A50 -> 2011-03-19 | B50: =Expense_Entry!B50 -> Concorde Hotel | C50: =Expense_Entry!C50 -> Hotel | D50: =Expense_Entry!D50 -> Hotel | E50: =Expense_Entry!E50 -> AMEX | F50: =Expense_Entry!F50 -> SGD | G50: =Expense_Entry!G50 -> $335.45 | H50: SGD to CAD | I50: =IF(F50=Reimbursement_Currency,1,IF(G50="","",G50/Expense_Entry!$J50)) -> 1.2580 | J50: $266.65 | L50: N/A | M50: =IF(G50="","",VLOOKUP(Client_Currency,Expense_Entry!FX_Rate_Tbl,2,FALSE())/VLOOKUP(F50,Expense_Entry!FX_Rate_Tbl,2,FALSE())) -> 1.0000 | N50: $335.45
A51: =Expense_Entry!A51 -> 2011-03-19 | B51: =Expense_Entry!B51 -> Starbucks | C51: =Expense_Entry!C51 -> Coffee | D51: =Expense_Entry!D51 -> Meals | E51: =Expense_Entry!E51 -> AMEX | F51: =Expense_Entry!F51 -> SGD | G51: =Expense_Entry!G51 -> $5.50 | H51: SGD to CAD | I51: =IF(F51=Reimbursement_Currency,1,IF(G51="","",G51/Expense_Entry!$J51)) -> 1.2580 | J51: $4.37 | L51: N/A | M51: =IF(G51="","",VLOOKUP(Client_Currency,Expense_Entry!FX_Rate_Tbl,2,FALSE())/VLOOKUP(F51,Expense_Entry!FX_Rate_Tbl,2,FALSE())) -> 1.0000 | N51: $5.50
A52: =Expense_Entry!A52 -> 2011-03-19 | B52: =Expense_Entry!B52 -> Cold Storage | C52: =Expense_Entry!C52 -> Snack | D52: =Expense_Entry!D52 -> Meals | E52: =Expense_Entry!E52 -> Cash | F52: =Expense_Entry!F52 -> SGD | G52: =Expense_Entry!G52 -> $6.60 | H52: SGD to CAD | I52: =IF(F52=Reimbursement_Currency,1,IF(G52="","",G52/Expense_Entry!$J52)) -> 1.2580 | J52: $5.25 | L52: N/A | M52: =IF(G52="","",VLOOKUP(Client_Currency,Expense_Entry!FX_Rate_Tbl,2,FALSE())/VLOOKUP(F52,Expense_Entry!FX_Rate_Tbl,2,FALSE())) -> 1.0000 | N52: $6.60
A53: =Expense_Entry!A53 -> 2011-03-20 | B53: =Expense_Entry!B53 -> Concorde Hotel | C53: =Expense_Entry!C53 -> Hotel | D53: =Expense_Entry!D53 -> Hotel | E53: =Expense_Entry!E53 -> AMEX | F53: =Expense_Entry!F53 -> SGD | G53: =Expense_Entry!G53 -> $335.45 | H53: SGD to CAD | I53: =IF(F53=Reimbursement_Currency,1,IF(G53="","",G53/Expense_Entry!$J53)) -> 1.2580 | J53: $266.65 | L53: N/A | M53: =IF(G53="","",VLOOKUP(Client_Currency,Expense_Entry!FX_Rate_Tbl,2,FALSE())/VLOOKUP(F53,Expense_Entry!FX_Rate_Tbl,2,FALSE())) -> 1.0000 | N53: $335.45
A54: =Expense_Entry!A54 -> 2011-03-20 | B54: =Expense_Entry!B54 -> Starbucks | C54: =Expense_Entry!C54 -> Coffee | D54: =Expense_Entry!D54 -> Meals | E54: =Expense_Entry!E54 -> AMEX | F54: =Expense_Entry!F54 -> SGD | G54: =Expense_Entry!G54 -> $8.70 | H54: SGD to CAD | I54: =IF(F54=Reimbursement_Currency,1,IF(G54="","",G54/Expense_Entry!$J54)) -> 1.2580 | J54: $6.92 | L54: N/A | M54: =IF(G54="","",VLOOKUP(Client_Currency,Expense_Entry!FX_Rate_Tbl,2,FALSE())/VLOOKUP(F54,Expense_Entry!FX_Rate_Tbl,2,FALSE())) -> 1.0000 | N54: $8.70
A55: =Expense_Entry!A55 -> 2011-03-20 | B55: =Expense_Entry!B55 -> Starbucks | C55: =Expense_Entry!C55 -> Coffee | D55: =Expense_Entry!D55 -> Meals | E55: =Expense_Entry!E55 -> AMEX | F55: =Expense_Entry!F55 -> SGD | G55: =Expense_Entry!G55 -> $5.80 | H55: SGD to CAD | I55: =IF(F55=Reimbursement_Currency,1,IF(G55="","",G55/Expense_Entry!$J55)) -> 1.2580 | J55: $4.61 | L55: N/A | M55: =IF(G55="","",VLOOKUP(Client_Currency,Expense_Entry!FX_Rate_Tbl,2,FALSE())/VLOOKUP(F55,Expense_Entry!FX_Rate_Tbl,2,FALSE())) -> 1.0000 | N55: $5.80
A56: =Expense_Entry!A56 -> 2011-03-20 | B56: =Expense_Entry!B56 -> Starbucks | C56: =Expense_Entry!C56 -> Tip | D56: =Expense_Entry!D56 -> Meals | E56: =Expense_Entry!E56 -> Cash | F56: =Expense_Entry!F56 -> SGD | G56: =Expense_Entry!G56 -> $2.20 | H56: SGD to CAD | I56: =IF(F56=Reimbursement_Currency,1,IF(G56="","",G56/Expense_Entry!$J56)) -> 1.2580 | J56: $1.75 | L56: N/A | M56: =IF(G56="","",VLOOKUP(Client_Currency,Expense_Entry!FX_Rate_Tbl,2,FALSE())/VLOOKUP(F56,Expense_Entry!FX_Rate_Tbl,2,FALSE())) -> 1.0000 | N56: $2.20
A57: =Expense_Entry!A57 -> 2011-03-21 | B57: =Expense_Entry!B57 -> Concorde Hotel | C57: =Expense_Entry!C57 -> Hotel | D57: =Expense_Entry!D57 -> Hotel | E57: =Expense_Entry!E57 -> AMEX | F57: =Expense_Entry!F57 -> SGD | G57: =Expense_Entry!G57 -> $335.45 | H57: SGD to CAD | I57: =IF(F57=Reimbursement_Currency,1,IF(G57="","",G57/Expense_Entry!$J57)) -> 1.2580 | J57: $266.65 | L57: N/A | M57: =IF(G57="","",VLOOKUP(Client_Currency,Expense_Entry!FX_Rate_Tbl,2,FALSE())/VLOOKUP(F57,Expense_Entry!FX_Rate_Tbl,2,FALSE())) -> 1.0000 | N57: $335.45
A58: =Expense_Entry!A58 -> 2011-03-21 | B58: =Expense_Entry!B58 -> Concorde Hotel | C58: =Expense_Entry!C58 -> Laundry | D58: =Expense_Entry!D58 -> Misc. | E58: =Expense_Entry!E58 -> AMEX | F58: =Expense_Entry!F58 -> SGD | G58: =Expense_Entry!G58 -> $32.49 | H58: SGD to CAD | I58: =IF(F58=Reimbursement_Currency,1,IF(G58="","",G58/Expense_Entry!$J58)) -> 1.2580 | J58: $25.83 | L58: N/A | M58: =IF(G58="","",VLOOKUP(Client_Currency,Expense_Entry!FX_Rate_Tbl,2,FALSE())/VLOOKUP(F58,Expense_Entry!FX_Rate_Tbl,2,FALSE())) -> 1.0000 | N58: $32.49
A59: =Expense_Entry!A59 -> 2011-03-21 | B59: =Expense_Entry!B59 -> SingTel | C59: =Expense_Entry!C59 -> BoM | D59: =Expense_Entry!D59 -> Phone | E59: =Expense_Entry!E59 -> AMEX | F59: =Expense_Entry!F59 -> SGD | G59: =Expense_Entry!G59 -> $18.00 | H59: SGD to CAD | I59: =IF(F59=Reimbursement_Currency,1,IF(G59="","",G59/Expense_Entry!$J59)) -> 1.2580 | J59: $14.31 | L59: N/A | M59: =IF(G59="","",VLOOKUP(Client_Currency,Expense_Entry!FX_Rate_Tbl,2,FALSE())/VLOOKUP(F59,Expense_Entry!FX_Rate_Tbl,2,FALSE())) -> 1.0000 | N59: $18.00
A60: =Expense_Entry!A60 -> 2011-03-21 | B60: =Expense_Entry!B60 -> Starbucks | C60: =Expense_Entry!C60 -> Coffee | D60: =Expense_Entry!D60 -> Meals | E60: =Expense_Entry!E60 -> AMEX | F60: =Expense_Entry!F60 -> SGD | G60: =Expense_Entry!G60 -> $7.10 | H60: SGD to CAD | I60: =IF(F60=Reimbursement_Currency,1,IF(G60="","",G60/Expense_Entry!$J60)) -> 1.2580 | J60: $5.64 | L60: N/A | M60: =IF(G60="","",VLOOKUP(Client_Currency,Expense_Entry!FX_Rate_Tbl,2,FALSE())/VLOOKUP(F60,Expense_Entry!FX_Rate_Tbl,2,FALSE())) -> 1.0000 | N60: $7.10
A61: =Expense_Entry!A61 -> 2011-03-21 | B61: =Expense_Entry!B61 -> Cold Storage | C61: =Expense_Entry!C61 -> Water | D61: =Expense_Entry!D61 -> Meals | E61: =Expense_Entry!E61 -> Cash | F61: =Expense_Entry!F61 -> SGD | G61: =Expense_Entry!G61 -> $2.15 | H61: SGD to CAD | I61: =IF(F61=Reimbursement_Currency,1,IF(G61="","",G61/Expense_Entry!$J61)) -> 1.2580 | J61: $1.71 | L61: N/A | M61: =IF(G61="","",VLOOKUP(Client_Currency,Expense_Entry!FX_Rate_Tbl,2,FALSE())/VLOOKUP(F61,Expense_Entry!FX_Rate_Tbl,2,FALSE())) -> 1.0000 | N61: $2.15
A62: =Expense_Entry!A62 -> 2011-03-21 | B62: =Expense_Entry!B62 -> SingTel | C62: =Expense_Entry!C62 -> Lunch | D62: =Expense_Entry!D62 -> Meals | E62: =Expense_Entry!E62 -> Cash | F62: =Expense_Entry!F62 -> SGD | G62: =Expense_Entry!G62 -> $2.80 | H62: SGD to CAD | I62: =IF(F62=Reimbursement_Currency,1,IF(G62="","",G62/Expense_Entry!$J62)) -> 1.2580 | J62: $2.23 | L62: N/A | M62: =IF(G62="","",VLOOKUP(Client_Currency,Expense_Entry!FX_Rate_Tbl,2,FALSE())/VLOOKUP(F62,Expense_Entry!FX_Rate_Tbl,2,FALSE())) -> 1.0000 | N62: $2.80
A63: =Expense_Entry!A63 -> 2011-03-22 | B63: =Expense_Entry!B63 -> Concorde Hotel | C63: =Expense_Entry!C63 -> Hotel | D63: =Expense_Entry!D63 -> Hotel | E63: =Expense_Entry!E63 -> AMEX | F63: =Expense_Entry!F63 -> SGD | G63: =Expense_Entry!G63 -> $335.45 | H63: SGD to CAD | I63: =IF(F63=Reimbursement_Currency,1,IF(G63="","",G63/Expense_Entry!$J63)) -> 1.2580 | J63: $266.65 | L63: N/A | M63: =IF(G63="","",VLOOKUP(Client_Currency,Expense_Entry!FX_Rate_Tbl,2,FALSE())/VLOOKUP(F63,Expense_Entry!FX_Rate_Tbl,2,FALSE())) -> 1.0000 | N63: $335.45
A64: =Expense_Entry!A64 -> 2011-03-22 | B64: =Expense_Entry!B64 -> Starbucks | C64: =Expense_Entry!C64 -> Coffee | D64: =Expense_Entry!D64 -> Meals | E64: =Expense_Entry!E64 -> AMEX | F64: =Expense_Entry!F64 -> SGD | G64: =Expense_Entry!G64 -> $7.10 | H64: SGD to CAD | I64: =IF(F64=Reimbursement_Currency,1,IF(G64="","",G64/Expense_Entry!$J64)) -> 1.2580 | J64: $5.64 | L64: N/A | M64: =IF(G64="","",VLOOKUP(Client_Currency,Expense_Entry!FX_Rate_Tbl,2,FALSE())/VLOOKUP(F64,Expense_Entry!FX_Rate_Tbl,2,FALSE())) -> 1.0000 | N64: $7.10
A65: =Expense_Entry!A65 -> 2011-03-22 | B65: =Expense_Entry!B65 -> Cold Storage | C65: =Expense_Entry!C65 -> Dinner | D65: =Expense_Entry!D65 -> Meals | E65: =Expense_Entry!E65 -> AMEX | F65: =Expense_Entry!F65 -> SGD | G65: =Expense_Entry!G65 -> $26.50 | H65: SGD to CAD | I65: =IF(F65=Reimbursement_Currency,1,IF(G65="","",G65/Expense_Entry!$J65)) -> 1.2580 | J65: $21.06 | L65: N/A | M65: =IF(G65="","",VLOOKUP(Client_Currency,Expense_Entry!FX_Rate_Tbl,2,FALSE())/VLOOKUP(F65,Expense_Entry!FX_Rate_Tbl,2,FALSE())) -> 1.0000 | N65: $26.50
A66: =Expense_Entry!A66 -> 2011-03-22 | B66: =Expense_Entry!B66 -> SingTel | C66: =Expense_Entry!C66 -> Lunch | D66: =Expense_Entry!D66 -> Meals | E66: =Expense_Entry!E66 -> Cash | F66: =Expense_Entry!F66 -> SGD | G66: =Expense_Entry!G66 -> $5.50 | H66: SGD to CAD | I66: =IF(F66=Reimbursement_Currency,1,IF(G66="","",G66/Expense_Entry!$J66)) -> 1.2580 | J66: $4.37 | L66: N/A | M66: =IF(G66="","",VLOOKUP(Client_Currency,Expense_Entry!FX_Rate_Tbl,2,FALSE())/VLOOKUP(F66,Expense_Entry!FX_Rate_Tbl,2,FALSE())) -> 1.0000 | N66: $5.50
A67: =Expense_Entry!A67 -> 2011-03-23 | B67: =Expense_Entry!B67 -> Concorde Hotel | C67: =Expense_Entry!C67 -> Hotel | D67: =Expense_Entry!D67 -> Hotel | E67: =Expense_Entry!E67 -> AMEX | F67: =Expense_Entry!F67 -> SGD | G67: =Expense_Entry!G67 -> $335.45 | H67: SGD to CAD | I67: =IF(F67=Reimbursement_Currency,1,IF(G67="","",G67/Expense_Entry!$J67)) -> 1.2580 | J67: $266.65 | L67: N/A | M67: =IF(G67="","",VLOOKUP(Client_Currency,Expense_Entry!FX_Rate_Tbl,2,FALSE())/VLOOKUP(F67,Expense_Entry!FX_Rate_Tbl,2,FALSE())) -> 1.0000 | N67: $335.45
A68: =Expense_Entry!A68 -> 2011-03-23 | B68: =Expense_Entry!B68 -> Starbucks | C68: =Expense_Entry!C68 -> Coffee | D68: =Expense_Entry!D68 -> Meals | E68: =Expense_Entry!E68 -> AMEX | F68: =Expense_Entry!F68 -> SGD | G68: =Expense_Entry!G68 -> $7.90 | H68: SGD to CAD | I68: =IF(F68=Reimbursement_Currency,1,IF(G68="","",G68/Expense_Entry!$J68)) -> 1.2580 | J68: $6.28 | L68: N/A | M68: =IF(G68="","",VLOOKUP(Client_Currency,Expense_Entry!FX_Rate_Tbl,2,FALSE())/VLOOKUP(F68,Expense_Entry!FX_Rate_Tbl,2,FALSE())) -> 1.0000 | N68: $7.90
A69: =Expense_Entry!A69 -> 2011-03-23 | B69: =Expense_Entry!B69 -> Burger King | C69: =Expense_Entry!C69 -> Lunch | D69: =Expense_Entry!D69 -> Meals | E69: =Expense_Entry!E69 -> Cash | F69: =Expense_Entry!F69 -> SGD | G69: =Expense_Entry!G69 -> $7.65 | H69: SGD to CAD | I69: =IF(F69=Reimbursement_Currency,1,IF(G69="","",G69/Expense_Entry!$J69)) -> 1.2580 | J69: $6.08 | L69: N/A | M69: =IF(G69="","",VLOOKUP(Client_Currency,Expense_Entry!FX_Rate_Tbl,2,FALSE())/VLOOKUP(F69,Expense_Entry!FX_Rate_Tbl,2,FALSE())) -> 1.0000 | N69: $7.65
A70: =Expense_Entry!A70 -> 2011-03-23 | B70: =Expense_Entry!B70 -> Starbucks | C70: =Expense_Entry!C70 -> Coffee | D70: =Expense_Entry!D70 -> Meals | E70: =Expense_Entry!E70 -> AMEX | F70: =Expense_Entry!F70 -> HKG | G70: =Expense_Entry!G70 -> $26.00 | H70: HKG to CAD | I70: =IF(F70=Reimbursement_Currency,1,IF(G70="","",G70/Expense_Entry!$J70)) -> 7.8078 | J70: $3.33 | L70: HKG to SGD | M70: =IF(G70="","",VLOOKUP(Client_Currency,Expense_Entry!FX_Rate_Tbl,2,FALSE())/VLOOKUP(F70,Expense_Entry!FX_Rate_Tbl,2,FALSE())) -> 0.1599 | N70: $4.16
A72: =" Reimbursement Totals (Advisor Currency) -- " & Reimbursement_Currency -> Reimbursement Totals (Advisor Currency) -- CAD
A73: Sum of Reim Amt. | B73: Column Labels
A74: Row Labels | B74: 2011-03-11 | C74: 2011-03-12 | D74: 2011-03-13 | E74: 2011-03-14 | F74: 2011-03-15 | G74: 2011-03-16 | H74: 2011-03-17 | I74: 2011-03-18 | J74: 2011-03-19 | K74: 2011-03-20 | L74: 2011-03-21 | M74: 2011-03-22 | N74: 2011-03-23 | O74: Grand Total
A75: Airfare | C75: $11,000.81 | O75: $11,000.81
A76: Hotel | C76: $134.47 | D76: $5.00 | E76: $266.65 | F76: $266.65 | G76: $266.65 | H76: $266.65 | I76: $266.65 | J76: $266.65 | K76: $266.65 | L76: $266.65 | M76: $266.65 | N76: $266.65 | O76: $2,805.97
A77: Meals | B77: $13.09 | C77: $48.13 | D77: $5.25 | F77: $7.87 | G77: $42.29 | H77: $35.19 | I77: $34.65 | J77: $9.62 | K77: $13.28 | L77: $9.58 | M77: $31.07 | N77: $15.69 | O77: $265.71
A78: Mileage | B78: $19.76 | O78: $19.76
A79: Misc. | D79: $2.50 | F79: $19.87 | H79: $25.83 | L79: $25.83 | O79: $74.03
A80: Parking | B80: $6.00 | O80: $6.00
A81: Phone | F81: $14.31 | H81: $0.34 | I81: $14.31 | L81: $14.31 | O81: $43.27
A82: Taxi | C82: $20.00 | F82: $24.28 | O82: $44.28
A83: Grand Total | B83: $38.85 | C83: $11,203.41 | D83: $12.75 | E83: $266.65 | F83: $332.98 | G83: $308.94 | H83: $328.01 | I83: $315.61 | J83: $276.27 | K83: $279.93 | L83: $316.37 | M83: $297.72 | N83: $282.34 | O83: $14,259.83
A87: =" Invoice Totals (Client Currency) -- " & Client_Currency -> Invoice Totals (Client Currency) -- SGD
A88: Sum of Inv. Amt. | B88: Column Labels
A89: Row Labels | B89: 2011-03-11 | C89: 2011-03-12 | D89: 2011-03-13 | E89: 2011-03-14 | F89: 2011-03-15 | G89: 2011-03-16 | H89: 2011-03-17 | I89: 2011-03-18 | J89: 2011-03-19 | K89: 2011-03-20 | L89: 2011-03-21 | M89: 2011-03-22 | N89: 2011-03-23 | O89: Grand Total
A90: Airfare | C90: $13,733.79 | O90: $13,733.79
A91: Hotel | C91: $167.88 | D91: $6.24 | E91: $335.45 | F91: $335.45 | G91: $335.45 | H91: $335.45 | I91: $335.45 | J91: $335.45 | K91: $335.45 | L91: $335.45 | M91: $335.45 | N91: $335.45 | O91: $3,528.62
A92: Meals | B92: $16.50 | C92: $60.09 | D92: $6.55 | F92: $9.90 | G92: $53.20 | H92: $44.27 | I92: $43.60 | J92: $12.10 | K92: $16.70 | L92: $12.05 | M92: $39.10 | N92: $19.71 | O92: $333.77
A93: Mileage | B93: $28.10 | O93: $28.10
A94: Misc. | D94: $3.12 | F94: $25.00 | H94: $32.49 | L94: $32.49 | O94: $93.10
A95: Parking | B95: $7.49 | O95: $7.49
A96: Phone | F96: $18.00 | H96: $0.43 | I96: $18.00 | L96: $18.00 | O96: $54.43
A97: Taxi | C97: $24.97 | F97: $30.55 | O97: $55.52
A98: Grand Total | B98: $52.09 | C98: $13,986.73 | D98: $15.91 | E98: $335.45 | F98: $418.90 | G98: $388.65 | H98: $412.64 | I98: $397.05 | J98: $347.55 | K98: $352.15 | L98: $397.99 | M98: $374.55 | N98: $355.16 | O98: $17,834.82

Sheet NonReim_Summary
B1: =Reim_Detail!A1 -> Expense Report—Employee Name [ Week 14 ]
B3: =Cover!B4 -> Trip Start: | C3: =Trip_Start -> 2004-03-29 | G3: =Reim_Detail!D3 -> Total Amount: | H3: =Total_Est_NonReim_Amt -> 0
B4: =Cover!B5 -> Trip End: | C4: =Trip_End -> 00:00:00 | G4: =Reim_Detail!D4 -> Client Currency: | H4: =Reimbursement_Currency -> CAD
B5: =Cover!B6 -> Client: | C5: =Client -> Client Name | G5: Total Final Amount: | H5: =Total_Est_NonReim_Amt+NonReim_Difference -> 0
B6: =Cover!B7 -> Destination: | C6: =Destination -> Politsania
B7: =Cover!B8 -> Purpose: | C7: =Purpose -> Demo data
B9: Sum of Home Amt. | C9: Type
B10: Date | C10: (blank) | D10: Grand Total
B11: (blank) | C11: $0.00 | D11: $0.00
B12: Grand Total | C12: $0.00 | D12: $0.00

Sheet NonReim_Detail
A1: =Cover!B1 -> Expense Report—Employee Name [ Week 14 ]
A3: =Cover!B4 -> Trip Start: | B3: =Trip_Start -> 2004-03-29 | D3: Total Amount: | E3: =Total_Est_NonReim_Amt -> 0 | G3: Currency | H3: FX Rate
A4: =Cover!B5 -> Trip End: | B4: =Trip_End -> 00:00:00 | F4: =IF(H4=1,"Home→","") -> Home→ | G4: =INDEX(Cover!FX_Names,ROW(G4)-3,1) -> CAD | H4: =VLOOKUP(G4,Cover!FX_Rate_Tbl,2,FALSE)/VLOOKUP(Reimbursement_Currency,Cover!FX_Rate_Tbl,2,FALSE) -> 1.0000
A5: =Cover!B6 -> Client: | B5: =Client -> Client Name | F5: =IF(H5=1,"Home→","") ->  | G5: =INDEX(Cover!FX_Names,ROW(G5)-3,1) -> USD | H5: =VLOOKUP(G5,Cover!FX_Rate_Tbl,2,FALSE)/VLOOKUP(Reimbursement_Currency,Cover!FX_Rate_Tbl,2,FALSE) -> 0.9370
A6: =Cover!B7 -> Destination: | B6: =Destination -> Politsania | G6: =INDEX(Cover!FX_Names,ROW(G6)-3,1) -> SGD | H6: =VLOOKUP(G6,Cover!FX_Rate_Tbl,2,FALSE)/VLOOKUP(Reimbursement_Currency,Cover!FX_Rate_Tbl,2,FALSE) -> 1.2484
A7: =Cover!B8 -> Purpose: | B7: =Purpose -> Demo data | G7: =INDEX(Cover!FX_Names,ROW(G7)-3,1) -> HKG | H7: =VLOOKUP(G7,Cover!FX_Rate_Tbl,2,FALSE)/VLOOKUP(Reimbursement_Currency,Cover!FX_Rate_Tbl,2,FALSE) -> 7.8078 | J7: Calculate Foreign
G8: =INDEX(Cover!FX_Names,ROW(G8)-3,1) -> Other 1 | H8: =VLOOKUP(G8,Cover!FX_Rate_Tbl,2,FALSE)/VLOOKUP(Reimbursement_Currency,Cover!FX_Rate_Tbl,2,FALSE) -> 0 | J8: Currency Adjustment
H9: Estimated | J9: Actual
A10: Date | B10: Establishment | C10: Description | D10: Type | E10: Method | F10: Currency | G10: Exp. Amt. | H10: Home Amt. | I10: - | J10: Levied Amt. | K10: Difference
H11: =IF(OR(ISBLANK(F11),ISBLANK(G11)),"",ROUND(G11/VLOOKUP(F11,FX_Rate_Tbl,2,FALSE),2)) ->  | K11: =IF(Reimbursement_Currency=F11,0,IF(ISBLANK(J11),STR_TBD,ROUND(J11-(H11/VLOOKUP(Reimbursement_Currency,FX_Rate_Tbl,2)),2))) -> TBD
K12: TBD
K13: TBD
K14: TBD
K15: TBD
K16: TBD
K17: TBD
K18: TBD
K19: TBD
K20: TBD
K21: TBD
K22: TBD
K23: TBD
K24: TBD
K25: TBD
K26: TBD
K27: TBD
K28: TBD
K29: TBD
K30: TBD
G31: Total: | H31: =SUM(H11:H30) -> 0 | J31: B/W: | K31: =SUM(K11:K30) -> 0

Sheet Rules
B2: Methods
B3: Account
B4: AMEX
B5: Cash
B6: Mileage
B7: SBX
B8: VISA
B10: Types
B11: Airfare
B12: Car Rental
B13: Hotel
B14: Meals
B15: Mileage
B16: Misc.
B17: Parking
B18: Phone
B19: Taxi
B20: Train
B22: Personal
B23: Types
B24: Airfare
B25: Car Rental
B26: Hotel
B27: Meals
B28: Misc.
B29: Office
B30: Parking
B31: Phone
B32: Taxi
B34: Constants
B35: N/A
B36: TBD
B37: to

Sheet ChangeLog
A1: Date | B1: Vers. | C1: Notes
A2: 2004-08-10 | B2: 10.1 | C2: First public release.
A3: 2005-05-26 | B3: 10.3 | C3: Added extra rows to input sheet.
A4: 2005-06-04 | B4: 11.0 | C4: Added extra ExpenseConversion sheet to meet head office data submision requirements.
A5: 2006-01-06 | B5: 11.1 | C5: Turned on protection for each sheet (no password).
A6: 2006-07-04 | B6: 12.0 | C6: Corrected currency conversion formulae.
A7: 2006-10-06 | B7: 12.1 | C7: Turned off protection & inserted new "Mileage" type.
A8: 2006-11-10 | B8: 12.2 | C8: Added Mileage & Account as Methods.
A9: 2007-01-06 | B9: 12.3 | C9: Added Mileage Rate field to cover page.
A10: 2008-07-12 | B10: 12.8 | C10: Added SBX Exepense Method & pivot tables to US Exchange worksheet.
A11: 2011-03-31 | B11: 13.0 | C11: Attempted to fix some problems with formulae on the Reim_Detail tab. There are still problems and the template requires a complete re-work.
A12: 2011-05-08 | B12: 14.0 | C12: Rebuilt the template from scratch in Excel 2010. No attempt was made to retain backward compatibility with old version of Excel.
